Workbook

Sheet Borçlanma ve Diğer Araç İhracı
A1: 2018 YILI İZAHNAME/İHRAÇ BELGESİ ONAYLANAN BORÇLANMA VE DİĞER SERMAYE PİYASASI ARAÇLARI ÖZET DURUM TABLOSU
A2: Sıra | B2: Şirket Adı | C2: Grubu | D2: Sermaye Piyasası Aracının Türü | E2: İzahname/İhraç Belgesi Başvuru Tarihi | F2: İşlemden Kaldırma/Olumsuz Sonuçlanma Tarihi | G2: İzahname/ihraç Belgesi Kurul Kararı Tarihi | H2: Satış Yöntemi | I2: Yurtiçi İhraç Limiti Nominal Tutar (TL) | J2: Yurtiçi İhraç Limiti Nominal Tutar ABD Doları Karşılığı* | K2: Yurtiçi Satışı Gerçekleşen Nominal Tutar (TL) | L2: Yurtiçi Satışa Hazır Nominal Tutar (TL) | M2: Yurtdışı İhraç Limiti Nominal Tutar | N2: Yurtdışı İhraç Limiti Para Birimi | O2: Yurtdışı Satışı Gerçekleşen Nominal Tutar | P2: Yurtdışı Satışa Hazır Nominal Tutar | Q2: Yurtdışı Satışı Gerçekleşen Nominal Tutar (TL)**
A3: 1 | B3: Şeker Faktoring A.Ş. | C3: Finansal Kurum | D3: Borçlanma Aracı | E3: 2017-11-27 | F3: - | G3: 2018-01-08 | H3: Halka Arz/Tahsisli/Nitelikli Yatırımcı | I3: 130,000,000.00 | J3: =Table5402945[[#This Row],[Yurtiçi İhraç Limiti Nominal Tutar (TL)]]/3.7521 -> 34,647,264.20 | K3: 130,000,000.00 | L3: =Table5402945[[#This Row],[Yurtiçi İhraç Limiti Nominal Tutar (TL)]]-Table5402945[[#This Row],[Yurtiçi Satışı Gerçekleşen Nominal Tutar (TL)]] -> 0.00
A4: 2 | B4: Vakıf Faktoring A.Ş. | C4: Finansal Kurum | D4: Borçlanma Aracı | E4: 2017-12-06 | F4: - | G4: 2018-01-08 | H4: Nitelikli Yatırımcı | I4: 400,000,000.00 | J4: =Table5402945[[#This Row],[Yurtiçi İhraç Limiti Nominal Tutar (TL)]]/3.7521 -> 106,606,966.77 | K4: 400,000,000.00 | L4: =Table5402945[[#This Row],[Yurtiçi İhraç Limiti Nominal Tutar (TL)]]-Table5402945[[#This Row],[Yurtiçi Satışı Gerçekleşen Nominal Tutar (TL)]] -> 0.00
A5: 3 | B5: Aktif Yatırım Bankası A.Ş. (3) No’lu Turkcell Varlık Finansmanı Fonu | C5: Fon | D5: VDMK | E5: 2017-12-13 | F5: - | G5: 2018-01-08 | H5: Nitelikli Yatırımcı | I5: 100,000,000.00 | J5: =Table5402945[[#This Row],[Yurtiçi İhraç Limiti Nominal Tutar (TL)]]/3.7521 -> 26,651,741.69 | K5: 100,000,000.00 | L5: =Table5402945[[#This Row],[Yurtiçi İhraç Limiti Nominal Tutar (TL)]]-Table5402945[[#This Row],[Yurtiçi Satışı Gerçekleşen Nominal Tutar (TL)]] -> 0.00
A6: 4 | B6: Türkiye Vakıflar Bankası T.A.O. | C6: Banka | D6: Borçlanma Aracı | E6: 2017-12-14 | F6: - | G6: 2018-01-08 | H6: Yurtdışı | M6: 5,000,000,000.00 | N6: ABD Doları | O6: 688,003,200.00 | P6: =Table5402945[[#This Row],[Yurtdışı İhraç Limiti Nominal Tutar]]-Table5402945[[#This Row],[Yurtdışı Satışı Gerçekleşen Nominal Tutar]] -> 4,311,996,800.00 | Q6: =Table5402945[[#This Row],[Yurtdışı Satışı Gerçekleşen Nominal Tutar]]*5.2905 -> 3,639,880,929.60
A7: 5 | B7: Zorlu Enerji Elektrik Üretim A.Ş. | C7: Reel Sektör | D7: Borçlanma Aracı | E7: 2017-12-22 | F7: - | G7: 2018-01-08 | H7: Nitelikli Yatırımcı | I7: 300,000,000.00 | J7: =Table5402945[[#This Row],[Yurtiçi İhraç Limiti Nominal Tutar (TL)]]/3.7521 -> 79,955,225.07 | K7: 268,380,000.00 | L7: =Table5402945[[#This Row],[Yurtiçi İhraç Limiti Nominal Tutar (TL)]]-Table5402945[[#This Row],[Yurtiçi Satışı Gerçekleşen Nominal Tutar (TL)]] -> 31,620,000.00
A8: 6 | B8: Akdeniz Faktoring A.Ş. | C8: Finansal Kurum | D8: Borçlanma Aracı | E8: 2017-12-11 | F8: - | G8: 2018-01-18 | H8: Nitelikli Yatırımcı | I8: 137,000,000.00 | J8: =Table5402945[[#This Row],[Yurtiçi İhraç Limiti Nominal Tutar (TL)]]/3.8036 -> 36,018,508.78 | K8: 61,000,000.00 | L8: =Table5402945[[#This Row],[Yurtiçi İhraç Limiti Nominal Tutar (TL)]]-Table5402945[[#This Row],[Yurtiçi Satışı Gerçekleşen Nominal Tutar (TL)]] -> 76,000,000.00
A9: 7 | B9: Katılım Varlık Kiralama A.Ş. | C9: Finansal Kurum | D9: Kira Sertifikası | E9: 2017-12-01 | F9: - | G9: 2018-01-25 | H9: Tahsisli/Nitelikli Yatırımcı | I9: 1,000,000,000.00 | J9: =Table5402945[[#This Row],[Yurtiçi İhraç Limiti Nominal Tutar (TL)]]/3.7489 -> 266,744,911.84 | K9: 436,650,000.00 | L9: =Table5402945[[#This Row],[Yurtiçi İhraç Limiti Nominal Tutar (TL)]]-Table5402945[[#This Row],[Yurtiçi Satışı Gerçekleşen Nominal Tutar (TL)]] -> 563,350,000.00
A10: 8 | B10: Vakıf Finansal Kiralama A.Ş. | C10: Finansal Kurum | D10: Borçlanma Aracı | E10: 2018-01-04 | F10: - | G10: 2018-01-25 | H10: Tahsisli/Nitelikli Yatırımcı | I10: 400,000,000.00 | J10: =Table5402945[[#This Row],[Yurtiçi İhraç Limiti Nominal Tutar (TL)]]/3.7489 -> 106,697,964.74 | K10: 400,000,000.00 | L10: =Table5402945[[#This Row],[Yurtiçi İhraç Limiti Nominal Tutar (TL)]]-Table5402945[[#This Row],[Yurtiçi Satışı Gerçekleşen Nominal Tutar (TL)]] -> 0.00
A11: 9 | B11: Türkiye İş Bankası A.Ş. | C11: Banka | D11: Borçlanma Aracı | E11: 2018-01-04 | F11: - | G11: 2018-01-25 | H11: Yurtdışı | M11: 5,000,000,000.00 | N11: ABD Doları | O11: 95,402,500.00 | P11: =Table5402945[[#This Row],[Yurtdışı İhraç Limiti Nominal Tutar]]-Table5402945[[#This Row],[Yurtdışı Satışı Gerçekleşen Nominal Tutar]] -> 4,904,597,500.00 | Q11: =Table5402945[[#This Row],[Yurtdışı Satışı Gerçekleşen Nominal Tutar]]*5.2905 -> 504,726,926.25
A12: 10 | B12: Yılmaz Holding A.Ş. | C12: Reel Sektör | D12: Borçlanma Aracı | E12: 2018-01-15 | F12: - | G12: 2018-01-25 | H12: Nitelikli Yatırımcı | I12: 400,000,000.00 | J12: =Table5402945[[#This Row],[Yurtiçi İhraç Limiti Nominal Tutar (TL)]]/3.7489 -> 106,697,964.74 | K12: 0.00 | L12: =Table5402945[[#This Row],[Yurtiçi İhraç Limiti Nominal Tutar (TL)]]-Table5402945[[#This Row],[Yurtiçi Satışı Gerçekleşen Nominal Tutar (TL)]] -> 400,000,000.00
A13: 11 | B13: Sümer Varlık Yönetim A.Ş. | C13: Finansal Kurum | D13: Borçlanma Aracı | E13: 2017-11-13 | F13: - | G13: 2018-02-01 | H13: Nitelikli Yatırımcı | I13: 50,000,000.00 | J13: =Table5402945[[#This Row],[Yurtiçi İhraç Limiti Nominal Tutar (TL)]]/3.7635 -> 13,285,505.51 | K13: 23,500,000.00 | L13: =Table5402945[[#This Row],[Yurtiçi İhraç Limiti Nominal Tutar (TL)]]-Table5402945[[#This Row],[Yurtiçi Satışı Gerçekleşen Nominal Tutar (TL)]] -> 26,500,000.00
A14: 12 | B14: QNB Finans Finansal Kiralama A.Ş. | C14: Finansal Kurum | D14: Borçlanma Aracı | E14: 2017-12-07 | F14: - | G14: 2018-02-01 | H14: Halka Arz/Tahsisli/Nitelikli Yatırımcı | I14: 500,000,000.00 | J14: =Table5402945[[#This Row],[Yurtiçi İhraç Limiti Nominal Tutar (TL)]]/3.7635 -> 132,855,055.13 | K14: 120,000,000.00 | L14: =Table5402945[[#This Row],[Yurtiçi İhraç Limiti Nominal Tutar (TL)]]-Table5402945[[#This Row],[Yurtiçi Satışı Gerçekleşen Nominal Tutar (TL)]] -> 380,000,000.00
A15: 13 | B15: Fibabanka A.Ş. | C15: Banka | D15: Borçlanma Aracı | E15: 2017-12-29 | F15: - | G15: 2018-02-01 | H15: Tahsisli/Nitelikli Yatırımcı | I15: 1,680,000,000.00 | J15: =Table5402945[[#This Row],[Yurtiçi İhraç Limiti Nominal Tutar (TL)]]/3.7635 -> 446,392,985.25 | K15: 1,624,765,000.00 | L15: =Table5402945[[#This Row],[Yurtiçi İhraç Limiti Nominal Tutar (TL)]]-Table5402945[[#This Row],[Yurtiçi Satışı Gerçekleşen Nominal Tutar (TL)]] -> 55,235,000.00
A16: 14 | B16: Türkiye Garanti Bankası A.Ş. | C16: Banka | D16: Borçlanma Aracı | E16: 2018-01-11 | F16: - | G16: 2018-02-01 | H16: Yurtdışı | M16: 6,000,000,000.00 | N16: ABD Doları | O16: 205,102,353.27 | P16: =Table5402945[[#This Row],[Yurtdışı İhraç Limiti Nominal Tutar]]-Table5402945[[#This Row],[Yurtdışı Satışı Gerçekleşen Nominal Tutar]] -> 5,794,897,646.73 | Q16: =Table5402945[[#This Row],[Yurtdışı Satışı Gerçekleşen Nominal Tutar]]*5.2905 -> 1,085,094,000.00
A17: 15 | B17: T.C. Ziraat Bankası A.Ş. | C17: Banka | D17: Borçlanma Aracı | E17: 2018-01-16 | F17: - | G17: 2018-02-01 | H17: Yurtdışı | M17: 4,000,000,000.00 | N17: ABD Doları | O17: 124,760,797.66 | P17: =Table5402945[[#This Row],[Yurtdışı İhraç Limiti Nominal Tutar]]-Table5402945[[#This Row],[Yurtdışı Satışı Gerçekleşen Nominal Tutar]] -> 3,875,239,202.34 | Q17: =Table5402945[[#This Row],[Yurtdışı Satışı Gerçekleşen Nominal Tutar]]*5.2905 -> 660,047,000.00
A18: 16 | B18: Turk Elektronik Para A.Ş. | C18: Finansal Kurum | D18: Borçlanma Aracı | E18: 2017-11-27 | F18: - | G18: 2018-02-08 | H18: Nitelikli Yatırımcı | I18: 27,000,000.00 | J18: =Table5402945[[#This Row],[Yurtiçi İhraç Limiti Nominal Tutar (TL)]]/3.8142 -> 7,078,810.76 | K18: 0.00 | L18: =Table5402945[[#This Row],[Yurtiçi İhraç Limiti Nominal Tutar (TL)]]-Table5402945[[#This Row],[Yurtiçi Satışı Gerçekleşen Nominal Tutar (TL)]] -> 27,000,000.00
A19: 17 | B19: Fleetcorp Operasyonel Taşıt Kiralama ve Turizm A.Ş.*** | C19: Reel Sektör | D19: Borçlanma Aracı | E19: 2018-01-23 | F19: - | G19: 2018-02-08 | H19: Nitelikli Yatırımcı | I19: 300,000,000.00 | J19: =Table5402945[[#This Row],[Yurtiçi İhraç Limiti Nominal Tutar (TL)]]/3.8142 -> 78,653,452.89 | K19: 0.00 | L19: =Table5402945[[#This Row],[Yurtiçi İhraç Limiti Nominal Tutar (TL)]]-Table5402945[[#This Row],[Yurtiçi Satışı Gerçekleşen Nominal Tutar (TL)]]-300000000 -> 0.00
A20: 18 | B20: Ulusal Faktoring A.Ş. | C20: Finansal Kurum | D20: Borçlanma Aracı | E20: 2018-01-23 | F20: - | G20: 2018-02-08 | H20: Nitelikli Yatırımcı | I20: 170,000,000.00 | J20: =Table5402945[[#This Row],[Yurtiçi İhraç Limiti Nominal Tutar (TL)]]/3.8142 -> 44,570,289.97 | K20: 62,500,000.00 | L20: =Table5402945[[#This Row],[Yurtiçi İhraç Limiti Nominal Tutar (TL)]]-Table5402945[[#This Row],[Yurtiçi Satışı Gerçekleşen Nominal Tutar (TL)]] -> 107,500,000.00
A21: 19 | B21: T.C. Ziraat Bankası A.Ş. | C21: Banka | D21: Borçlanma Aracı | E21: 2018-01-23 | F21: - | G21: 2018-02-08 | H21: Tahsisli/Nitelikli Yatırımcı | I21: 15,000,000,000.00 | J21: =Table5402945[[#This Row],[Yurtiçi İhraç Limiti Nominal Tutar (TL)]]/3.8142 -> 3,932,672,644.33 | K21: 8,682,360,000.00 | L21: =Table5402945[[#This Row],[Yurtiçi İhraç Limiti Nominal Tutar (TL)]]-Table5402945[[#This Row],[Yurtiçi Satışı Gerçekleşen Nominal Tutar (TL)]] -> 6,317,640,000.00
A22: 20 | B22: T.C. Ziraat Bankası A.Ş. | C22: Banka | D22: Borçlanma Aracı | E22: 2018-01-23 | F22: - | G22: 2018-02-08 | H22: Tahsisli/Nitelikli Yatırımcı | I22: 2,500,000,000.00 | J22: =Table5402945[[#This Row],[Yurtiçi İhraç Limiti Nominal Tutar (TL)]]/3.8142 -> 655,445,440.72 | K22: 0.00 | L22: =Table5402945[[#This Row],[Yurtiçi İhraç Limiti Nominal Tutar (TL)]]-Table5402945[[#This Row],[Yurtiçi Satışı Gerçekleşen Nominal Tutar (TL)]] -> 2,500,000,000.00
A23: 21 | B23: T.C. Ziraat Bankası A.Ş. | C23: Banka | D23: Borçlanma Aracı | E23: 2018-01-23 | F23: - | G23: 2018-02-08 | H23: Tahsisli/Nitelikli Yatırımcı | I23: 1,500,000,000.00 | J23: =Table5402945[[#This Row],[Yurtiçi İhraç Limiti Nominal Tutar (TL)]]/3.8142 -> 393,267,264.43 | K23: 0.00 | L23: =Table5402945[[#This Row],[Yurtiçi İhraç Limiti Nominal Tutar (TL)]]-Table5402945[[#This Row],[Yurtiçi Satışı Gerçekleşen Nominal Tutar (TL)]] -> 1,500,000,000.00
A24: 22 | B24: Nurol Yatırım Bankası A.Ş. | C24: Banka | D24: Borçlanma Aracı | E24: 2018-01-26 | F24: - | G24: 2018-02-08 | H24: Nitelikli Yatırımcı | I24: 500,000,000.00 | J24: =Table5402945[[#This Row],[Yurtiçi İhraç Limiti Nominal Tutar (TL)]]/3.8142 -> 131,089,088.14 | K24: 484,100,000.00 | L24: =Table5402945[[#This Row],[Yurtiçi İhraç Limiti Nominal Tutar (TL)]]-Table5402945[[#This Row],[Yurtiçi Satışı Gerçekleşen Nominal Tutar (TL)]] -> 15,900,000.00
A25: 23 | B25: Türkiye Garanti Bankası A.Ş. | C25: Banka | D25: Borçlanma Aracı | E25: 2017-12-20 | F25: - | G25: 2018-02-15 | H25: Halka Arz/Nitelikli Yatırımcı | I25: 20,000,000,000.00 | J25: =Table5402945[[#This Row],[Yurtiçi İhraç Limiti Nominal Tutar (TL)]]/3.7789 -> 5,292,545,449.73 | K25: 12,204,222,507.00 | L25: =Table5402945[[#This Row],[Yurtiçi İhraç Limiti Nominal Tutar (TL)]]-Table5402945[[#This Row],[Yurtiçi Satışı Gerçekleşen Nominal Tutar (TL)]] -> 7,795,777,493.00
A26: 24 | B26: Akbank T.A.Ş. | C26: Banka | D26: Borçlanma Aracı | E26: 2018-01-12 | F26: - | G26: 2018-02-15 | H26: Halka Arz | I26: 10,000,000,000.00 | J26: =Table5402945[[#This Row],[Yurtiçi İhraç Limiti Nominal Tutar (TL)]]/3.7789 -> 2,646,272,724.87 | K26: 0.00 | L26: =Table5402945[[#This Row],[Yurtiçi İhraç Limiti Nominal Tutar (TL)]]-Table5402945[[#This Row],[Yurtiçi Satışı Gerçekleşen Nominal Tutar (TL)]] -> 10,000,000,000.00
A27: 25 | B27: Sümer Faktoring A.Ş. | C27: Finansal Kurum | D27: Borçlanma Aracı | E27: 2018-01-25 | F27: - | G27: 2018-02-15 | H27: Nitelikli Yatırımcı | I27: 30,000,000.00 | J27: =Table5402945[[#This Row],[Yurtiçi İhraç Limiti Nominal Tutar (TL)]]/3.7789 -> 7,938,818.17 | K27: 30,000,000.00 | L27: =Table5402945[[#This Row],[Yurtiçi İhraç Limiti Nominal Tutar (TL)]]-Table5402945[[#This Row],[Yurtiçi Satışı Gerçekleşen Nominal Tutar (TL)]] -> 0.00
A28: 26 | B28: Yeditepe Faktoring A.Ş. | C28: Finansal Kurum | D28: Borçlanma Aracı | E28: 2018-01-25 | F28: - | G28: 2018-02-22 | H28: Nitelikli Yatırımcı | I28: 175,000,000.00 | J28: =Table5402945[[#This Row],[Yurtiçi İhraç Limiti Nominal Tutar (TL)]]/3.8062 -> 45,977,615.47 | K28: 90,000,000.00 | L28: =Table5402945[[#This Row],[Yurtiçi İhraç Limiti Nominal Tutar (TL)]]-Table5402945[[#This Row],[Yurtiçi Satışı Gerçekleşen Nominal Tutar (TL)]] -> 85,000,000.00
A29: 27 | B29: Derindere Turizm Otomotiv Sanayi ve Ticaret A.Ş.*** | C29: Reel Sektör | D29: Borçlanma Aracı | E29: 2018-01-26 | F29: - | G29: 2018-02-22 | H29: Tahsisli/Nitelikli Yatırımcı | I29: 250,000,000.00 | J29: =Table5402945[[#This Row],[Yurtiçi İhraç Limiti Nominal Tutar (TL)]]/3.8062 -> 65,682,307.81 | K29: 50,000,000.00 | L29: =Table5402945[[#This Row],[Yurtiçi İhraç Limiti Nominal Tutar (TL)]]-Table5402945[[#This Row],[Yurtiçi Satışı Gerçekleşen Nominal Tutar (TL)]]-200000000 -> 0.00
A30: 28 | B30: Çelik Motor Ticaret A.Ş. | C30: Reel Sektör | D30: Borçlanma Aracı | E30: 2018-01-29 | F30: - | G30: 2018-02-22 | H30: Nitelikli Yatırımcı | I30: 70,000,000.00 | J30: =Table5402945[[#This Row],[Yurtiçi İhraç Limiti Nominal Tutar (TL)]]/3.8062 -> 18,391,046.19 | K30: 70,000,000.00 | L30: =Table5402945[[#This Row],[Yurtiçi İhraç Limiti Nominal Tutar (TL)]]-Table5402945[[#This Row],[Yurtiçi Satışı Gerçekleşen Nominal Tutar (TL)]] -> 0.00
A31: 29 | B31: Doğtaş Kelebek Mobilya Sanayi ve Ticaret A.Ş. | C31: Reel Sektör | D31: Borçlanma Aracı | E31: 2018-02-01 | F31: - | G31: 2018-02-22 | H31: Nitelikli Yatırımcı | I31: 67,000,000.00 | J31: =Table5402945[[#This Row],[Yurtiçi İhraç Limiti Nominal Tutar (TL)]]/3.8062 -> 17,602,858.49 | K31: 0.00 | L31: =Table5402945[[#This Row],[Yurtiçi İhraç Limiti Nominal Tutar (TL)]]-Table5402945[[#This Row],[Yurtiçi Satışı Gerçekleşen Nominal Tutar (TL)]] -> 67,000,000.00
A32: 30 | B32: Lider Faktoring A.Ş. | C32: Finansal Kurum | D32: Borçlanma Aracı | E32: 2018-02-14 | F32: - | G32: 2018-02-22 | H32: Tahsisli/Nitelikli Yatırımcı | I32: 225,000,000.00 | J32: =Table5402945[[#This Row],[Yurtiçi İhraç Limiti Nominal Tutar (TL)]]/3.8062 -> 59,114,077.03 | K32: 210,000,000.00 | L32: =Table5402945[[#This Row],[Yurtiçi İhraç Limiti Nominal Tutar (TL)]]-Table5402945[[#This Row],[Yurtiçi Satışı Gerçekleşen Nominal Tutar (TL)]] -> 15,000,000.00
A33: 31 | B33: KT Sukuk Varlık Kiralama A.Ş. | C33: Finansal Kurum | D33: Kira Sertifikası | E33: 2018-01-19 | F33: - | G33: 2018-03-01 | H33: Tahsisli/Nitelikli Yatırımcı | I33: 300,000,000.00 | J33: =Table5402945[[#This Row],[Yurtiçi İhraç Limiti Nominal Tutar (TL)]]/3.815 -> 78,636,959.37 | K33: 200,000,000.00 | L33: =Table5402945[[#This Row],[Yurtiçi İhraç Limiti Nominal Tutar (TL)]]-Table5402945[[#This Row],[Yurtiçi Satışı Gerçekleşen Nominal Tutar (TL)]] -> 100,000,000.00
A34: 32 | B34: Fiba Faktoring A.Ş. | C34: Finansal Kurum | D34: Borçlanma Aracı | E34: 2018-01-29 | F34: - | G34: 2018-03-01 | H34: Nitelikli Yatırımcı | I34: 500,000,000.00 | J34: =Table5402945[[#This Row],[Yurtiçi İhraç Limiti Nominal Tutar (TL)]]/3.815 -> 131,061,598.95 | K34: 247,230,000.00 | L34: =Table5402945[[#This Row],[Yurtiçi İhraç Limiti Nominal Tutar (TL)]]-Table5402945[[#This Row],[Yurtiçi Satışı Gerçekleşen Nominal Tutar (TL)]] -> 252,770,000.00
A35: 33 | B35: Ereğli Tekstil Turizm Sanayi ve Ticaret A.Ş. | C35: Reel Sektör | D35: Borçlanma Aracı | E35: 2018-02-02 | F35: - | G35: 2018-03-01 | H35: Nitelikli Yatırımcı | I35: 300,000,000.00 | J35: =Table5402945[[#This Row],[Yurtiçi İhraç Limiti Nominal Tutar (TL)]]/3.815 -> 78,636,959.37 | K35: 205,600,000.00 | L35: =Table5402945[[#This Row],[Yurtiçi İhraç Limiti Nominal Tutar (TL)]]-Table5402945[[#This Row],[Yurtiçi Satışı Gerçekleşen Nominal Tutar (TL)]] -> 94,400,000.00
A36: 34 | B36: Vakıf Varlık Kiralama A.Ş. | C36: Finansal Kurum | D36: Kira Sertifikası | E36: 2018-02-09 | F36: - | G36: 2018-03-01 | H36: Tahsisli/Nitelikli Yatırımcı | I36: 5,000,000,000.00 | J36: =Table5402945[[#This Row],[Yurtiçi İhraç Limiti Nominal Tutar (TL)]]/3.815 -> 1,310,615,989.52 | K36: 3,987,304,047.00 | L36: =Table5402945[[#This Row],[Yurtiçi İhraç Limiti Nominal Tutar (TL)]]-Table5402945[[#This Row],[Yurtiçi Satışı Gerçekleşen Nominal Tutar (TL)]] -> 1,012,695,953.00
A37: 35 | B37: Eko Faktoring A.Ş. | C37: Finansal Kurum | D37: Borçlanma Aracı | E37: 2018-01-31 | F37: - | G37: 2018-03-08 | H37: Nitelikli Yatırımcı | I37: 100,000,000.00 | J37: =Table5402945[[#This Row],[Yurtiçi İhraç Limiti Nominal Tutar (TL)]]/3.8157 -> 26,207,511.07 | K37: 91,500,000.00 | L37: =Table5402945[[#This Row],[Yurtiçi İhraç Limiti Nominal Tutar (TL)]]-Table5402945[[#This Row],[Yurtiçi Satışı Gerçekleşen Nominal Tutar (TL)]] -> 8,500,000.00
A38: 36 | B38: Ziraat Katılım Varlık Kiralama A.Ş. | C38: Finansal Kurum | D38: Kira Sertifikası | E38: 2018-02-19 | F38: - | G38: 2018-03-08 | H38: Tahsisli/Nitelikli Yatırımcı | I38: 2,000,000,000.00 | J38: =Table5402945[[#This Row],[Yurtiçi İhraç Limiti Nominal Tutar (TL)]]/3.8157 -> 524,150,221.45 | K38: 2,000,000,000.00 | L38: =Table5402945[[#This Row],[Yurtiçi İhraç Limiti Nominal Tutar (TL)]]-Table5402945[[#This Row],[Yurtiçi Satışı Gerçekleşen Nominal Tutar (TL)]] -> 0.00
A39: 37 | B39: Devir Faktoring A.Ş. | C39: Finansal Kurum | D39: Borçlanma Aracı | E39: 2018-02-23 | F39: - | G39: 2018-03-08 | H39: Nitelikli Yatırımcı | I39: 60,000,000.00 | J39: =Table5402945[[#This Row],[Yurtiçi İhraç Limiti Nominal Tutar (TL)]]/3.8157 -> 15,724,506.64 | K39: 40,500,000.00 | L39: =Table5402945[[#This Row],[Yurtiçi İhraç Limiti Nominal Tutar (TL)]]-Table5402945[[#This Row],[Yurtiçi Satışı Gerçekleşen Nominal Tutar (TL)]] -> 19,500,000.00
A40: 38 | B40: Fibabanka A.Ş. | C40: Banka | D40: VTMK | E40: 2017-12-05 | F40: - | G40: 2018-03-15 | H40: Halka Arz/Tahsisli/Nitelikli Yatırımcı | I40: 500,000,000.00 | J40: =Table5402945[[#This Row],[Yurtiçi İhraç Limiti Nominal Tutar (TL)]]/3.8945 -> 128,386,185.65 | K40: 24,088,000.00 | L40: =Table5402945[[#This Row],[Yurtiçi İhraç Limiti Nominal Tutar (TL)]]-Table5402945[[#This Row],[Yurtiçi Satışı Gerçekleşen Nominal Tutar (TL)]] -> 475,912,000.00
A41: 39 | B41: Türkiye İhracat Kredi Bankası A.Ş. | C41: Banka | D41: Borçlanma Aracı | E41: 2018-02-07 | F41: - | G41: 2018-03-15 | H41: Yurtdışı | M41: 1,000,000,000.00 | N41: ABD Doları | O41: 500,000,000.00 | P41: =Table5402945[[#This Row],[Yurtdışı İhraç Limiti Nominal Tutar]]-Table5402945[[#This Row],[Yurtdışı Satışı Gerçekleşen Nominal Tutar]] -> 500,000,000.00 | Q41: =Table5402945[[#This Row],[Yurtdışı Satışı Gerçekleşen Nominal Tutar]]*5.2905 -> 2,645,250,000.00
A42: 40 | B42: Katılım Varlık Kiralama A.Ş. | C42: Finansal Kurum | D42: Kira Sertifikası | E42: 2018-02-16 | F42: - | G42: 2018-03-15 | H42: Tahsisli/Nitelikli Yatırımcı | I42: 500,000,000.00 | J42: =Table5402945[[#This Row],[Yurtiçi İhraç Limiti Nominal Tutar (TL)]]/3.8945 -> 128,386,185.65 | K42: 66,060,000.00 | L42: =Table5402945[[#This Row],[Yurtiçi İhraç Limiti Nominal Tutar (TL)]]-Table5402945[[#This Row],[Yurtiçi Satışı Gerçekleşen Nominal Tutar (TL)]] -> 433,940,000.00
A43: 41 | B43: Halk Yatırım Menkul Değerler A.Ş. | C43: Finansal Kurum | D43: Borçlanma Aracı | E43: 2018-02-23 | F43: - | G43: 2018-03-15 | H43: Nitelikli Yatırımcı | I43: 330,000,000.00 | J43: =Table5402945[[#This Row],[Yurtiçi İhraç Limiti Nominal Tutar (TL)]]/3.8945 -> 84,734,882.53 | K43: 330,000,000.00 | L43: =Table5402945[[#This Row],[Yurtiçi İhraç Limiti Nominal Tutar (TL)]]-Table5402945[[#This Row],[Yurtiçi Satışı Gerçekleşen Nominal Tutar (TL)]] -> 0.00
A44: 42 | B44: Halk Yatırım Menkul Değerler A.Ş. | C44: Finansal Kurum | D44: Borçlanma Aracı | E44: 2018-02-23 | F44: - | G44: 2018-03-15 | H44: Nitelikli Yatırımcı | I44: 30,000,000.00 | J44: =Table5402945[[#This Row],[Yurtiçi İhraç Limiti Nominal Tutar (TL)]]/3.8945 -> 7,703,171.14 | K44: 0.00 | L44: =Table5402945[[#This Row],[Yurtiçi İhraç Limiti Nominal Tutar (TL)]]-Table5402945[[#This Row],[Yurtiçi Satışı Gerçekleşen Nominal Tutar (TL)]] -> 30,000,000.00
A45: 43 | B45: Garanti Faktoring A.Ş. | C45: Finansal Kurum | D45: Borçlanma Aracı | E45: 2018-02-28 | F45: - | G45: 2018-03-15 | H45: Nitelikli Yatırımcı | I45: 350,000,000.00 | J45: =Table5402945[[#This Row],[Yurtiçi İhraç Limiti Nominal Tutar (TL)]]/3.8945 -> 89,870,329.95 | K45: 346,769,000.00 | L45: =Table5402945[[#This Row],[Yurtiçi İhraç Limiti Nominal Tutar (TL)]]-Table5402945[[#This Row],[Yurtiçi Satışı Gerçekleşen Nominal Tutar (TL)]] -> 3,231,000.00
A46: 44 | B46: Oyak Yatırım Menkul Değerler A.Ş. | C46: Finansal Kurum | D46: Borçlanma Aracı | E46: 2018-03-01 | F46: - | G46: 2018-03-15 | H46: Nitelikli Yatırımcı | I46: 180,000,000.00 | J46: =Table5402945[[#This Row],[Yurtiçi İhraç Limiti Nominal Tutar (TL)]]/3.8945 -> 46,219,026.83 | K46: 177,720,000.00 | L46: =Table5402945[[#This Row],[Yurtiçi İhraç Limiti Nominal Tutar (TL)]]-Table5402945[[#This Row],[Yurtiçi Satışı Gerçekleşen Nominal Tutar (TL)]] -> 2,280,000.00
A47: 45 | B47: Ünlü Menkul Değerler A.Ş. | C47: Finansal Kurum | D47: Borçlanma Aracı | E47: 2018-03-01 | F47: - | G47: 2018-03-15 | H47: Nitelikli Yatırımcı | I47: 75,000,000.00 | J47: =Table5402945[[#This Row],[Yurtiçi İhraç Limiti Nominal Tutar (TL)]]/3.8945 -> 19,257,927.85 | K47: 74,931,120.00 | L47: =Table5402945[[#This Row],[Yurtiçi İhraç Limiti Nominal Tutar (TL)]]-Table5402945[[#This Row],[Yurtiçi Satışı Gerçekleşen Nominal Tutar (TL)]] -> 68,880.00
A48: 46 | B48: Aktif Bank Sukuk Varlık Kiralama A.Ş. | C48: Finansal Kurum | D48: Kira Sertifikası | E48: 2018-03-01 | F48: - | G48: 2018-03-15 | H48: Nitelikli Yatırımcı | I48: 400,000,000.00 | J48: =Table5402945[[#This Row],[Yurtiçi İhraç Limiti Nominal Tutar (TL)]]/3.8945 -> 102,708,948.52 | K48: 400,000,000.00 | L48: =Table5402945[[#This Row],[Yurtiçi İhraç Limiti Nominal Tutar (TL)]]-Table5402945[[#This Row],[Yurtiçi Satışı Gerçekleşen Nominal Tutar (TL)]] -> 0.00
A49: 47 | B49: Bankpozitif Kredi ve Kalkınma Bankası A.Ş. | C49: Banka | D49: Borçlanma Aracı | E49: 2018-03-05 | F49: - | G49: 2018-03-15 | H49: Nitelikli Yatırımcı | I49: 400,000,000.00 | J49: =Table5402945[[#This Row],[Yurtiçi İhraç Limiti Nominal Tutar (TL)]]/3.8945 -> 102,708,948.52 | K49: 240,000,000.00 | L49: =Table5402945[[#This Row],[Yurtiçi İhraç Limiti Nominal Tutar (TL)]]-Table5402945[[#This Row],[Yurtiçi Satışı Gerçekleşen Nominal Tutar (TL)]] -> 160,000,000.00
A50: 48 | B50: Rönesans Gayrimenkul Yatırım A.Ş. | C50: Reel Sektör | D50: Borçlanma Aracı | E50: 2018-03-06 | F50: - | G50: 2018-03-15 | H50: Yurtdışı | M50: 750,000,000.00 | N50: ABD Doları | O50: 300,000,000.00 | P50: =Table5402945[[#This Row],[Yurtdışı İhraç Limiti Nominal Tutar]]-Table5402945[[#This Row],[Yurtdışı Satışı Gerçekleşen Nominal Tutar]] -> 450,000,000.00 | Q50: =Table5402945[[#This Row],[Yurtdışı Satışı Gerçekleşen Nominal Tutar]]*5.2905 -> 1,587,150,000.00
A51: 49 | B51: Şeker Yatırım Menkul Değerler A.Ş.*** | C51: Finansal Kurum | D51: Borçlanma Aracı | E51: 2018-01-29 | F51: - | G51: 2018-03-22 | H51: Nitelikli Yatırımcı | I51: 100,000,000.00 | J51: =Table5402945[[#This Row],[Yurtiçi İhraç Limiti Nominal Tutar (TL)]]/3.9157 -> 25,538,217.94 | K51: 95,436,400.00 | L51: =Table5402945[[#This Row],[Yurtiçi İhraç Limiti Nominal Tutar (TL)]]-Table5402945[[#This Row],[Yurtiçi Satışı Gerçekleşen Nominal Tutar (TL)]]-4563600 -> 0.00
A52: 50 | B52: TF Varlık Kiralama A.Ş. | C52: Finansal Kurum | D52: Kira Sertifikası | E52: 2018-02-20 | F52: - | G52: 2018-03-22 | H52: Yurtdışı | M52: 450,000,000.00 | N52: ABD Doları | O52: 0.00 | P52: =Table5402945[[#This Row],[Yurtdışı İhraç Limiti Nominal Tutar]]-Table5402945[[#This Row],[Yurtdışı Satışı Gerçekleşen Nominal Tutar]] -> 450,000,000.00 | Q52: =Table5402945[[#This Row],[Yurtdışı Satışı Gerçekleşen Nominal Tutar]]*5.2905 -> 0.00
A53: 51 | B53: Turkcell İletişim Hizmetleri A.Ş. | C53: Reel Sektör | D53: Borçlanma Aracı | E53: 2018-02-26 | F53: - | G53: 2018-03-22 | H53: Yurtdışı | M53: 750,000,000.00 | N53: ABD Doları | O53: 500,000,000.00 | P53: =Table5402945[[#This Row],[Yurtdışı İhraç Limiti Nominal Tutar]]-Table5402945[[#This Row],[Yurtdışı Satışı Gerçekleşen Nominal Tutar]] -> 250,000,000.00 | Q53: =Table5402945[[#This Row],[Yurtdışı Satışı Gerçekleşen Nominal Tutar]]*5.2905 -> 2,645,250,000.00
A54: 52 | B54: Korteks Mensucat Sanayi ve Ticaret A.Ş. | C54: Reel Sektör | D54: Borçlanma Aracı | E54: 2018-03-02 | F54: - | G54: 2018-03-22 | H54: Nitelikli Yatırımcı | I54: 350,000,000.00 | J54: =Table5402945[[#This Row],[Yurtiçi İhraç Limiti Nominal Tutar (TL)]]/3.9157 -> 89,383,762.80 | K54: 185,160,000.00 | L54: =Table5402945[[#This Row],[Yurtiçi İhraç Limiti Nominal Tutar (TL)]]-Table5402945[[#This Row],[Yurtiçi Satışı Gerçekleşen Nominal Tutar (TL)]] -> 164,840,000.00
A55: 53 | B55: Güven Varlık Yönetimi A.Ş. | C55: Finansal Kurum | D55: Borçlanma Aracı | E55: 2018-03-06 | F55: - | G55: 2018-03-22 | H55: Tahsisli/Nitelikli Yatırımcı | I55: 265,000,000.00 | J55: =Table5402945[[#This Row],[Yurtiçi İhraç Limiti Nominal Tutar (TL)]]/3.9157 -> 67,676,277.55 | K55: 229,550,000.00 | L55: =Table5402945[[#This Row],[Yurtiçi İhraç Limiti Nominal Tutar (TL)]]-Table5402945[[#This Row],[Yurtiçi Satışı Gerçekleşen Nominal Tutar (TL)]] -> 35,450,000.00
A56: 54 | B56: Sardes Faktoring A.Ş. | C56: Finansal Kurum | D56: Borçlanma Aracı | E56: 2018-03-16 | F56: - | G56: 2018-03-22 | H56: Nitelikli Yatırımcı | I56: 40,000,000.00 | J56: =Table5402945[[#This Row],[Yurtiçi İhraç Limiti Nominal Tutar (TL)]]/3.9157 -> 10,215,287.18 | K56: 0.00 | L56: =Table5402945[[#This Row],[Yurtiçi İhraç Limiti Nominal Tutar (TL)]]-Table5402945[[#This Row],[Yurtiçi Satışı Gerçekleşen Nominal Tutar (TL)]] -> 40,000,000.00
A57: 55 | B57: Parafinans Faktoring A.Ş. | C57: Finansal Kurum | D57: Borçlanma Aracı | E57: 2017-12-27 | F57: - | G57: 2018-03-30 | H57: Tahsisli/Nitelikli Yatırımcı | I57: 60,000,000.00 | J57: =Table5402945[[#This Row],[Yurtiçi İhraç Limiti Nominal Tutar (TL)]]/3.956 -> 15,166,835.19 | K57: 0.00 | L57: =Table5402945[[#This Row],[Yurtiçi İhraç Limiti Nominal Tutar (TL)]]-Table5402945[[#This Row],[Yurtiçi Satışı Gerçekleşen Nominal Tutar (TL)]] -> 60,000,000.00
A58: 56 | B58: Yapı ve Kredi Bankası A.Ş. | C58: Banka | D58: Borçlanma Aracı | E58: 2018-02-28 | F58: - | G58: 2018-03-30 | H58: Yurtdışı | M58: 7,000,000,000.00 | N58: ABD Doları | O58: 9,496,764.96 | P58: =Table5402945[[#This Row],[Yurtdışı İhraç Limiti Nominal Tutar]]-Table5402945[[#This Row],[Yurtdışı Satışı Gerçekleşen Nominal Tutar]] -> 6,990,503,235.04 | Q58: =Table5402945[[#This Row],[Yurtdışı Satışı Gerçekleşen Nominal Tutar]]*5.2905 -> 50,242,635.00
A59: 57 | B59: Fibabanka A.Ş. | C59: Banka | D59: Borçlanma Aracı | E59: 2018-03-06 | F59: - | G59: 2018-03-30 | H59: Tahsisli/Nitelikli Yatırımcı | I59: 300,000,000.00 | J59: =Table5402945[[#This Row],[Yurtiçi İhraç Limiti Nominal Tutar (TL)]]/3.956 -> 75,834,175.94 | K59: 0.00 | L59: =Table5402945[[#This Row],[Yurtiçi İhraç Limiti Nominal Tutar (TL)]]-Table5402945[[#This Row],[Yurtiçi Satışı Gerçekleşen Nominal Tutar (TL)]] -> 300,000,000.00
A60: 58 | B60: İş Yatırım Menkul Değerler A.Ş. | C60: Finansal Kurum | D60: Borçlanma Aracı | E60: 2018-03-07 | F60: - | G60: 2018-03-30 | H60: Tahsisli/Nitelikli Yatırımcı | I60: 224,000,000.00 | J60: =Table5402945[[#This Row],[Yurtiçi İhraç Limiti Nominal Tutar (TL)]]/3.956 -> 56,622,851.37 | K60: 221,110,000.00 | L60: =Table5402945[[#This Row],[Yurtiçi İhraç Limiti Nominal Tutar (TL)]]-Table5402945[[#This Row],[Yurtiçi Satışı Gerçekleşen Nominal Tutar (TL)]] -> 2,890,000.00
A61: 59 | B61: Katılım Varlık Kiralama A.Ş. | C61: Finansal Kurum | D61: Kira Sertifikası | E61: 2018-03-07 | F61: - | G61: 2018-03-30 | H61: Tahsisli/Nitelikli Yatırımcı | I61: 300,000,000.00 | J61: =Table5402945[[#This Row],[Yurtiçi İhraç Limiti Nominal Tutar (TL)]]/3.956 -> 75,834,175.94 | K61: 200,100,000.00 | L61: =Table5402945[[#This Row],[Yurtiçi İhraç Limiti Nominal Tutar (TL)]]-Table5402945[[#This Row],[Yurtiçi Satışı Gerçekleşen Nominal Tutar (TL)]] -> 99,900,000.00
A62: 60 | B62: Ziraat Katılım Varlık Kiralama A.Ş. | C62: Finansal Kurum | D62: Kira Sertifikası | E62: 2018-03-08 | F62: - | G62: 2018-03-30 | H62: Yurtdışı | M62: 500,000,000.00 | N62: ABD Doları | O62: 0.00 | P62: =Table5402945[[#This Row],[Yurtdışı İhraç Limiti Nominal Tutar]]-Table5402945[[#This Row],[Yurtdışı Satışı Gerçekleşen Nominal Tutar]] -> 500,000,000.00 | Q62: =Table5402945[[#This Row],[Yurtdışı Satışı Gerçekleşen Nominal Tutar]]*5.2905 -> 0.00
A63: 61 | B63: Creditwest Faktoring A.Ş. | C63: Finansal Kurum | D63: Borçlanma Aracı | E63: 2018-01-31 | F63: - | G63: 2018-04-05 | H63: Nitelikli Yatırımcı | I63: 200,000,000.00 | J63: =Table5402945[[#This Row],[Yurtiçi İhraç Limiti Nominal Tutar (TL)]]/4.0342 -> 49,576,124.14 | K63: 108,000,000.00 | L63: =Table5402945[[#This Row],[Yurtiçi İhraç Limiti Nominal Tutar (TL)]]-Table5402945[[#This Row],[Yurtiçi Satışı Gerçekleşen Nominal Tutar (TL)]] -> 92,000,000.00
A64: 62 | B64: Huzur Faktoring A.Ş. | C64: Finansal Kurum | D64: Borçlanma Aracı | E64: 2018-03-27 | F64: - | G64: 2018-04-05 | H64: Nitelikli Yatırımcı | I64: 65,000,000.00 | J64: =Table5402945[[#This Row],[Yurtiçi İhraç Limiti Nominal Tutar (TL)]]/4.0342 -> 16,112,240.35 | K64: 10,000,000.00 | L64: =Table5402945[[#This Row],[Yurtiçi İhraç Limiti Nominal Tutar (TL)]]-Table5402945[[#This Row],[Yurtiçi Satışı Gerçekleşen Nominal Tutar (TL)]] -> 55,000,000.00
A65: 63 | B65: Gedik Yatırım Holding A.Ş. | C65: Reel Sektör | D65: Borçlanma Aracı | E65: 2018-03-29 | F65: - | G65: 2018-04-05 | H65: Nitelikli Yatırımcı | I65: 45,000,000.00 | J65: =Table5402945[[#This Row],[Yurtiçi İhraç Limiti Nominal Tutar (TL)]]/4.0342 -> 11,154,627.93 | K65: 45,000,000.00 | L65: =Table5402945[[#This Row],[Yurtiçi İhraç Limiti Nominal Tutar (TL)]]-Table5402945[[#This Row],[Yurtiçi Satışı Gerçekleşen Nominal Tutar (TL)]] -> 0.00
A66: 64 | B66: Türkiye Garanti Bankası A.Ş. | C66: Banka | D66: İTMK | E66: 2018-02-07 | F66: - | G66: 2018-04-16 | H66: Yurtdışı | M66: 2,000,000,000.00 | N66: Avro | O66: 24,781,100.28 | P66: =Table5402945[[#This Row],[Yurtdışı İhraç Limiti Nominal Tutar]]-Table5402945[[#This Row],[Yurtdışı Satışı Gerçekleşen Nominal Tutar]] -> 1,975,218,899.72 | Q66: =Table5402945[[#This Row],[Yurtdışı Satışı Gerçekleşen Nominal Tutar]]*6.053 -> 150,000,000.00
A67: 65 | B67: Halk Varlık Kiralama A.Ş. | C67: Finansal Kurum | D67: Kira Sertifikası | E67: 2018-03-07 | F67: - | G67: 2018-04-16 | H67: Tahsisli/Nitelikli Yatırımcı | I67: 400,000,000.00 | J67: =Table5402945[[#This Row],[Yurtiçi İhraç Limiti Nominal Tutar (TL)]]/4.1034 -> 97,480,138.42 | K67: 250,000,000.00 | L67: =Table5402945[[#This Row],[Yurtiçi İhraç Limiti Nominal Tutar (TL)]]-Table5402945[[#This Row],[Yurtiçi Satışı Gerçekleşen Nominal Tutar (TL)]] -> 150,000,000.00
A68: 66 | B68: Ak Faktoring A.Ş. | C68: Finansal Kurum | D68: Borçlanma Aracı | E68: 2018-03-16 | F68: - | G68: 2018-04-16 | H68: Tahsisli/Nitelikli Yatırımcı | I68: 180,000,000.00 | J68: =Table5402945[[#This Row],[Yurtiçi İhraç Limiti Nominal Tutar (TL)]]/4.1034 -> 43,866,062.29 | K68: 0.00 | L68: =Table5402945[[#This Row],[Yurtiçi İhraç Limiti Nominal Tutar (TL)]]-Table5402945[[#This Row],[Yurtiçi Satışı Gerçekleşen Nominal Tutar (TL)]] -> 180,000,000.00
A69: 67 | B69: TEB Finansman A.Ş. | C69: Finansal Kurum | D69: Borçlanma Aracı | E69: 2018-03-21 | F69: - | G69: 2018-04-16 | H69: Tahsisli/Nitelikli Yatırımcı | I69: 350,000,000.00 | J69: =Table5402945[[#This Row],[Yurtiçi İhraç Limiti Nominal Tutar (TL)]]/4.1034 -> 85,295,121.12 | K69: 75,000,000.00 | L69: =Table5402945[[#This Row],[Yurtiçi İhraç Limiti Nominal Tutar (TL)]]-Table5402945[[#This Row],[Yurtiçi Satışı Gerçekleşen Nominal Tutar (TL)]] -> 275,000,000.00
A70: 68 | B70: Aktif Yatırım Bankası A.Ş. | C70: Banka | D70: Borçlanma Aracı | E70: 2018-03-21 | F70: - | G70: 2018-04-16 | H70: Halka Arz/Nitelikli Yatırımcı | I70: 700,000,000.00 | J70: =Table5402945[[#This Row],[Yurtiçi İhraç Limiti Nominal Tutar (TL)]]/4.1034 -> 170,590,242.24 | K70: 700,000,000.00 | L70: =Table5402945[[#This Row],[Yurtiçi İhraç Limiti Nominal Tutar (TL)]]-Table5402945[[#This Row],[Yurtiçi Satışı Gerçekleşen Nominal Tutar (TL)]] -> 0.00
A71: 69 | B71: Yapı Kredi Yatırım Menkul Değerler A.Ş. | C71: Finansal Kurum | D71: Borçlanma Aracı | E71: 2018-03-22 | F71: - | G71: 2018-04-16 | H71: Tahsisli/Nitelikli Yatırımcı | I71: 665,000,000.00 | J71: =Table5402945[[#This Row],[Yurtiçi İhraç Limiti Nominal Tutar (TL)]]/4.1034 -> 162,060,730.13 | K71: 665,000,000.00 | L71: =Table5402945[[#This Row],[Yurtiçi İhraç Limiti Nominal Tutar (TL)]]-Table5402945[[#This Row],[Yurtiçi Satışı Gerçekleşen Nominal Tutar (TL)]] -> 0.00
A72: 70 | B72: Yapı Kredi Finansal Kiralama A.O. | C72: Finansal Kurum | D72: Borçlanma Aracı | E72: 2018-03-26 | F72: - | G72: 2018-04-16 | H72: Nitelikli Yatırımcı | I72: 2,500,000,000.00 | J72: =Table5402945[[#This Row],[Yurtiçi İhraç Limiti Nominal Tutar (TL)]]/4.1034 -> 609,250,865.14 | K72: 1,800,060,000.00 | L72: =Table5402945[[#This Row],[Yurtiçi İhraç Limiti Nominal Tutar (TL)]]-Table5402945[[#This Row],[Yurtiçi Satışı Gerçekleşen Nominal Tutar (TL)]] -> 699,940,000.00
A73: 71 | B73: LDR Turizm A.Ş. | C73: Reel Sektör | D73: Borçlanma Aracı | E73: 2018-03-29 | F73: - | G73: 2018-04-16 | H73: Nitelikli Yatırımcı | I73: 100,000,000.00 | J73: =Table5402945[[#This Row],[Yurtiçi İhraç Limiti Nominal Tutar (TL)]]/4.1034 -> 24,370,034.61 | K73: 14,000,000.00 | L73: =Table5402945[[#This Row],[Yurtiçi İhraç Limiti Nominal Tutar (TL)]]-Table5402945[[#This Row],[Yurtiçi Satışı Gerçekleşen Nominal Tutar (TL)]] -> 86,000,000.00
A74: 72 | B74: Deva Holding A.Ş. | C74: Reel Sektör | D74: Borçlanma Aracı | E74: 2018-03-30 | F74: - | G74: 2018-04-16 | H74: Nitelikli Yatırımcı | I74: 150,000,000.00 | J74: =Table5402945[[#This Row],[Yurtiçi İhraç Limiti Nominal Tutar (TL)]]/4.1034 -> 36,555,051.91 | K74: 145,000,000.00 | L74: =Table5402945[[#This Row],[Yurtiçi İhraç Limiti Nominal Tutar (TL)]]-Table5402945[[#This Row],[Yurtiçi Satışı Gerçekleşen Nominal Tutar (TL)]] -> 5,000,000.00
A75: 73 | B75: Bereket Varlık Kiralama A.Ş. | C75: Finansal Kurum | D75: Kira Sertifikası | E75: 2018-04-02 | F75: - | G75: 2018-04-16 | H75: Yurtdışı | M75: 200,000,000.00 | N75: ABD Doları | O75: 90,000,000.00 | P75: =Table5402945[[#This Row],[Yurtdışı İhraç Limiti Nominal Tutar]]-Table5402945[[#This Row],[Yurtdışı Satışı Gerçekleşen Nominal Tutar]] -> 110,000,000.00 | Q75: =Table5402945[[#This Row],[Yurtdışı Satışı Gerçekleşen Nominal Tutar]]*5.2905 -> 476,145,000.00
A76: 74 | B76: Koçtaş Yapı Marketleri Ticaret A.Ş. | C76: Reel Sektör | D76: Borçlanma Aracı | E76: 2018-03-16 | F76: - | G76: 2018-04-27 | H76: Nitelikli Yatırımcı | I76: 100,000,000.00 | J76: =Table5402945[[#This Row],[Yurtiçi İhraç Limiti Nominal Tutar (TL)]]/4.0608 -> 24,625,689.52 | K76: 30,000,000.00 | L76: =Table5402945[[#This Row],[Yurtiçi İhraç Limiti Nominal Tutar (TL)]]-Table5402945[[#This Row],[Yurtiçi Satışı Gerçekleşen Nominal Tutar (TL)]] -> 70,000,000.00
A77: 75 | B77: Vera Varlık Yönetim A.Ş. | C77: Finansal Kurum | D77: Borçlanma Aracı | E77: 2018-03-29 | F77: - | G77: 2018-04-27 | H77: Nitelikli Yatırımcı | I77: 70,000,000.00 | J77: =Table5402945[[#This Row],[Yurtiçi İhraç Limiti Nominal Tutar (TL)]]/4.0608 -> 17,237,982.66 | K77: 55,000,000.00 | L77: =Table5402945[[#This Row],[Yurtiçi İhraç Limiti Nominal Tutar (TL)]]-Table5402945[[#This Row],[Yurtiçi Satışı Gerçekleşen Nominal Tutar (TL)]] -> 15,000,000.00
A78: 76 | B78: Türkiye İş Bankası A.Ş. | C78: Banka | D78: İTMK | E78: 2018-03-30 | F78: - | G78: 2018-04-27 | H78: Yurtdışı | M78: 2,000,000,000.00 | N78: Avro | O78: 0.00 | P78: =Table5402945[[#This Row],[Yurtdışı İhraç Limiti Nominal Tutar]]-Table5402945[[#This Row],[Yurtdışı Satışı Gerçekleşen Nominal Tutar]] -> 2,000,000,000.00 | Q78: =Table5402945[[#This Row],[Yurtdışı Satışı Gerçekleşen Nominal Tutar]]*6.053 -> 0.00
A79: 77 | B79: Türkiye Şişe ve Cam Fabrikaları A.Ş. | C79: Finansal Kurum | D79: Borçlanma Aracı | E79: 2018-04-10 | F79: - | G79: 2018-04-27 | H79: Yurtdışı | M79: 750,000,000.00 | N79: ABD Doları | O79: 0.00 | P79: =Table5402945[[#This Row],[Yurtdışı İhraç Limiti Nominal Tutar]]-Table5402945[[#This Row],[Yurtdışı Satışı Gerçekleşen Nominal Tutar]] -> 750,000,000.00 | Q79: =Table5402945[[#This Row],[Yurtdışı Satışı Gerçekleşen Nominal Tutar]]*5.2905 -> 0.00
A80: 78 | B80: Sümer Faktoring A.Ş.*** | C80: Finansal Kurum | D80: Borçlanma Aracı | E80: 2018-04-12 | F80: - | G80: 2018-04-27 | H80: Nitelikli Yatırımcı | I80: 36,000,000.00 | J80: =Table5402945[[#This Row],[Yurtiçi İhraç Limiti Nominal Tutar (TL)]]/4.0608 -> 8,865,248.23 | K80: 34,000,000.00 | L80: =Table5402945[[#This Row],[Yurtiçi İhraç Limiti Nominal Tutar (TL)]]-Table5402945[[#This Row],[Yurtiçi Satışı Gerçekleşen Nominal Tutar (TL)]]-2000000 -> 0.00
A81: 79 | B81: Lider Faktoring A.Ş. | C81: Finansal Kurum | D81: Borçlanma Aracı | E81: 2018-04-17 | F81: - | G81: 2018-04-27 | H81: Tahsisli/Nitelikli Yatırımcı | I81: 165,000,000.00 | J81: =Table5402945[[#This Row],[Yurtiçi İhraç Limiti Nominal Tutar (TL)]]/4.0608 -> 40,632,387.71 | K81: 90,000,000.00 | L81: =Table5402945[[#This Row],[Yurtiçi İhraç Limiti Nominal Tutar (TL)]]-Table5402945[[#This Row],[Yurtiçi Satışı Gerçekleşen Nominal Tutar (TL)]] -> 75,000,000.00
A82: 80 | B82: Nurol Yatırım Bankası A.Ş. | C82: Banka | D82: Borçlanma Aracı | E82: 2018-04-10 | F82: - | G82: 2018-05-04 | H82: Nitelikli Yatırımcı | I82: 300,000,000.00 | J82: =Table5402945[[#This Row],[Yurtiçi İhraç Limiti Nominal Tutar (TL)]]/4.2626 -> 70,379,580.54 | K82: 290,000,000.00 | L82: =Table5402945[[#This Row],[Yurtiçi İhraç Limiti Nominal Tutar (TL)]]-Table5402945[[#This Row],[Yurtiçi Satışı Gerçekleşen Nominal Tutar (TL)]] -> 10,000,000.00
A83: 81 | B83: Aktif Yatırım Bankası A.Ş. | C83: Banka | D83: Borçlanma Aracı | E83: 2018-04-12 | F83: - | G83: 2018-05-04 | H83: Nitelikli Yatırımcı | I83: 50,000,000.00 | J83: =Table5402945[[#This Row],[Yurtiçi İhraç Limiti Nominal Tutar (TL)]]/4.2626 -> 11,729,930.09 | K83: 0.00 | L83: =Table5402945[[#This Row],[Yurtiçi İhraç Limiti Nominal Tutar (TL)]]-Table5402945[[#This Row],[Yurtiçi Satışı Gerçekleşen Nominal Tutar (TL)]] -> 50,000,000.00
A84: 82 | B84: Teknik Yapı Teknik Yapılar Sanayi ve Ticaret A.Ş. | C84: Reel Sektör | D84: Borçlanma Aracı | E84: 2018-03-14 | F84: - | G84: 2018-05-11 | H84: Nitelikli Yatırımcı | I84: 250,000,000.00 | J84: =Table5402945[[#This Row],[Yurtiçi İhraç Limiti Nominal Tutar (TL)]]/4.2648 -> 58,619,395.99 | K84: 0.00 | L84: =Table5402945[[#This Row],[Yurtiçi İhraç Limiti Nominal Tutar (TL)]]-Table5402945[[#This Row],[Yurtiçi Satışı Gerçekleşen Nominal Tutar (TL)]] -> 250,000,000.00
A85: 83 | B85: Gedik Yatırım Menkul Değerler A.Ş. | C85: Finansal Kurum | D85: Borçlanma Aracı | E85: 2018-03-23 | F85: - | G85: 2018-05-11 | H85: Halka Arz/Nitelikli Yatırımcı | I85: 300,000,000.00 | J85: =Table5402945[[#This Row],[Yurtiçi İhraç Limiti Nominal Tutar (TL)]]/4.2648 -> 70,343,275.18 | K85: 150,000,000.00 | L85: =Table5402945[[#This Row],[Yurtiçi İhraç Limiti Nominal Tutar (TL)]]-Table5402945[[#This Row],[Yurtiçi Satışı Gerçekleşen Nominal Tutar (TL)]] -> 150,000,000.00
A86: 84 | B86: QNB Finansbank A.Ş. | C86: Banka | D86: Borçlanma Aracı | E86: 2018-04-19 | F86: - | G86: 2018-05-11 | H86: Yurtdışı | M86: 5,000,000,000.00 | N86: ABD Doları | O86: 154,600,000.00 | P86: =Table5402945[[#This Row],[Yurtdışı İhraç Limiti Nominal Tutar]]-Table5402945[[#This Row],[Yurtdışı Satışı Gerçekleşen Nominal Tutar]] -> 4,845,400,000.00 | Q86: =Table5402945[[#This Row],[Yurtdışı Satışı Gerçekleşen Nominal Tutar]]*5.2905 -> 817,911,300.00
A87: 85 | B87: Akbank T.A.Ş. | C87: Banka | D87: Borçlanma Aracı | E87: 2018-04-26 | F87: - | G87: 2018-05-11 | H87: Tahsisli/Nitelikli Yatırımcı | I87: 20,000,000,000.00 | J87: =Table5402945[[#This Row],[Yurtiçi İhraç Limiti Nominal Tutar (TL)]]/4.2648 -> 4,689,551,678.86 | K87: 9,049,570,000.00 | L87: =Table5402945[[#This Row],[Yurtiçi İhraç Limiti Nominal Tutar (TL)]]-Table5402945[[#This Row],[Yurtiçi Satışı Gerçekleşen Nominal Tutar (TL)]] -> 10,950,430,000.00
A88: 86 | B88: Turkish Bank A.Ş. | C88: Banka | D88: Borçlanma Aracı | E88: 2018-04-30 | F88: - | G88: 2018-05-11 | H88: Nitelikli Yatırımcı | I88: 150,000,000.00 | J88: =Table5402945[[#This Row],[Yurtiçi İhraç Limiti Nominal Tutar (TL)]]/4.2648 -> 35,171,637.59 | K88: 95,000,000.00 | L88: =Table5402945[[#This Row],[Yurtiçi İhraç Limiti Nominal Tutar (TL)]]-Table5402945[[#This Row],[Yurtiçi Satışı Gerçekleşen Nominal Tutar (TL)]] -> 55,000,000.00
A89: 87 | B89: Halk Finansal Kiralama A.Ş. | C89: Finansal Kurum | D89: Borçlanma Aracı | E89: 2018-05-02 | F89: - | G89: 2018-05-11 | H89: Nitelikli Yatırımcı | I89: 905,072,000.00 | J89: =Table5402945[[#This Row],[Yurtiçi İhraç Limiti Nominal Tutar (TL)]]/4.2648 -> 212,219,095.85 | K89: 645,000,000.00 | L89: =Table5402945[[#This Row],[Yurtiçi İhraç Limiti Nominal Tutar (TL)]]-Table5402945[[#This Row],[Yurtiçi Satışı Gerçekleşen Nominal Tutar (TL)]] -> 260,072,000.00
A90: 88 | B90: Destek Faktoring A.Ş. | C90: Finansal Kurum | D90: Borçlanma Aracı | E90: 2018-04-18 | F90: - | G90: 2018-05-17 | H90: Nitelikli Yatırımcı | I90: 500,000,000.00 | J90: =Table5402945[[#This Row],[Yurtiçi İhraç Limiti Nominal Tutar (TL)]]/4.4482 -> 112,405,017.76 | K90: 65,400,000.00 | L90: =Table5402945[[#This Row],[Yurtiçi İhraç Limiti Nominal Tutar (TL)]]-Table5402945[[#This Row],[Yurtiçi Satışı Gerçekleşen Nominal Tutar (TL)]] -> 434,600,000.00
A91: 89 | B91: Türkiye Vakıflar Bankası T.A.O. | C91: Banka | D91: Borçlanma Aracı | E91: 2018-04-18 | F91: - | G91: 2018-05-17 | H91: Nitelikli Yatırımcı | I91: 3,000,000,000.00 | J91: =Table5402945[[#This Row],[Yurtiçi İhraç Limiti Nominal Tutar (TL)]]/4.4482 -> 674,430,106.56 | K91: 240,000,000.00 | L91: =Table5402945[[#This Row],[Yurtiçi İhraç Limiti Nominal Tutar (TL)]]-Table5402945[[#This Row],[Yurtiçi Satışı Gerçekleşen Nominal Tutar (TL)]] -> 2,760,000,000.00
A92: 90 | B92: Ünlü Menkul Değerler A.Ş. | C92: Finansal Kurum | D92: Borçlanma Aracı | E92: 2018-04-19 | F92: - | G92: 2018-05-17 | H92: Nitelikli Yatırımcı | I92: 100,000,000.00 | J92: =Table5402945[[#This Row],[Yurtiçi İhraç Limiti Nominal Tutar (TL)]]/4.4482 -> 22,481,003.55 | K92: 67,133,100.00 | L92: =Table5402945[[#This Row],[Yurtiçi İhraç Limiti Nominal Tutar (TL)]]-Table5402945[[#This Row],[Yurtiçi Satışı Gerçekleşen Nominal Tutar (TL)]] -> 32,866,900.00
A93: 91 | B93: Kaleseramik, Çanakkale Kalebodur Seramik Sanayi A.Ş. | C93: Reel Sektör | D93: Borçlanma Aracı | E93: 2018-04-25 | F93: - | G93: 2018-05-17 | H93: Nitelikli Yatırımcı | I93: 100,000,000.00 | J93: =Table5402945[[#This Row],[Yurtiçi İhraç Limiti Nominal Tutar (TL)]]/4.4482 -> 22,481,003.55 | K93: 50,000,000.00 | L93: =Table5402945[[#This Row],[Yurtiçi İhraç Limiti Nominal Tutar (TL)]]-Table5402945[[#This Row],[Yurtiçi Satışı Gerçekleşen Nominal Tutar (TL)]] -> 50,000,000.00
A94: 92 | B94: Global Yatırım Holding A.Ş. | C94: Reel Sektör | D94: Borçlanma Aracı | E94: 2018-04-20 | F94: - | G94: 2018-05-24 | H94: Nitelikli Yatırımcı | I94: 250,000,000.00 | J94: =Table5402945[[#This Row],[Yurtiçi İhraç Limiti Nominal Tutar (TL)]]/4.7112 -> 53,065,036.51 | K94: 75,000,000.00 | L94: =Table5402945[[#This Row],[Yurtiçi İhraç Limiti Nominal Tutar (TL)]]-Table5402945[[#This Row],[Yurtiçi Satışı Gerçekleşen Nominal Tutar (TL)]] -> 175,000,000.00
A95: 93 | B95: Mogan Enerji Yatırım Holding A.Ş. | C95: Reel Sektör | D95: Borçlanma Aracı | E95: 2018-05-18 | F95: - | G95: 2018-05-24 | H95: Yurtdışı | M95: 90,000,000.00 | N95: Avro | O95: 90,000,000.00 | P95: =Table5402945[[#This Row],[Yurtdışı İhraç Limiti Nominal Tutar]]-Table5402945[[#This Row],[Yurtdışı Satışı Gerçekleşen Nominal Tutar]] -> 0.00 | Q95: =Table5402945[[#This Row],[Yurtdışı Satışı Gerçekleşen Nominal Tutar]]*6.053 -> 544,770,000.00
A96: 94 | B96: Set Varlık Kiralama A.Ş. | C96: Finansal Kurum | D96: Kira Sertifikası | E96: 2018-01-31 | F96: - | G96: 2018-05-31 | H96: Tahsisli | I96: 900,000.00 | J96: =Table5402945[[#This Row],[Yurtiçi İhraç Limiti Nominal Tutar (TL)]]/4.4889 -> 200,494.55 | K96: 900,000.00 | L96: =Table5402945[[#This Row],[Yurtiçi İhraç Limiti Nominal Tutar (TL)]]-Table5402945[[#This Row],[Yurtiçi Satışı Gerçekleşen Nominal Tutar (TL)]] -> 0.00
A97: 95 | B97: Aktif Yatırım Bankası A.Ş. (4) No’lu Turkcell Varlık Finansmanı Fonu | C97: Fon | D97: VDMK | E97: 2018-04-19 | F97: - | G97: 2018-05-31 | H97: Nitelikli Yatırımcı | I97: 100,000,000.00 | J97: =Table5402945[[#This Row],[Yurtiçi İhraç Limiti Nominal Tutar (TL)]]/4.4889 -> 22,277,172.58 | K97: 60,000,000.00 | L97: =Table5402945[[#This Row],[Yurtiçi İhraç Limiti Nominal Tutar (TL)]]-Table5402945[[#This Row],[Yurtiçi Satışı Gerçekleşen Nominal Tutar (TL)]] -> 40,000,000.00
A98: 96 | B98: Şeker Finansal Kiralama A.Ş.*** | C98: Finansal Kurum | D98: Borçlanma Aracı | E98: 2018-04-24 | F98: - | G98: 2018-05-31 | H98: Halka Arz/Tahsisli/Nitelikli Yatırımcı | I98: 150,000,000.00 | J98: =Table5402945[[#This Row],[Yurtiçi İhraç Limiti Nominal Tutar (TL)]]/4.4889 -> 33,415,758.87 | K98: 149,393,700.00 | L98: =Table5402945[[#This Row],[Yurtiçi İhraç Limiti Nominal Tutar (TL)]]-Table5402945[[#This Row],[Yurtiçi Satışı Gerçekleşen Nominal Tutar (TL)]]-606300 -> 0.00
A99: 97 | B99: Pasha Yatırım Bankası A.Ş. | C99: Banka | D99: Borçlanma Aracı | E99: 2018-05-02 | F99: - | G99: 2018-05-31 | H99: Nitelikli Yatırımcı | I99: 250,000,000.00 | J99: =Table5402945[[#This Row],[Yurtiçi İhraç Limiti Nominal Tutar (TL)]]/4.4889 -> 55,692,931.45 | K99: 161,184,000.00 | L99: =Table5402945[[#This Row],[Yurtiçi İhraç Limiti Nominal Tutar (TL)]]-Table5402945[[#This Row],[Yurtiçi Satışı Gerçekleşen Nominal Tutar (TL)]] -> 88,816,000.00
A100: 98 | B100: Pasha Yatırım Bankası A.Ş. | C100: Banka | D100: Borçlanma Aracı | E100: 2018-05-02 | F100: - | G100: 2018-05-31 | H100: Yurtdışı | M100: 135,000,000.00 | N100: Türk Lirası | O100: 113,927,500.00 | P100: =Table5402945[[#This Row],[Yurtdışı İhraç Limiti Nominal Tutar]]-Table5402945[[#This Row],[Yurtdışı Satışı Gerçekleşen Nominal Tutar]] -> 21,072,500.00 | Q100: =Table5402945[[#This Row],[Yurtdışı Satışı Gerçekleşen Nominal Tutar]]*1 -> 113,927,500.00
A101: 99 | B101: Hayat Varlık Yönetim A.Ş. | C101: Finansal Kurum | D101: Borçlanma Aracı | E101: 2018-05-04 | F101: - | G101: 2018-05-31 | H101: Nitelikli Yatırımcı | I101: 400,000,000.00 | J101: =Table5402945[[#This Row],[Yurtiçi İhraç Limiti Nominal Tutar (TL)]]/4.4889 -> 89,108,690.33 | K101: 31,000,000.00 | L101: =Table5402945[[#This Row],[Yurtiçi İhraç Limiti Nominal Tutar (TL)]]-Table5402945[[#This Row],[Yurtiçi Satışı Gerçekleşen Nominal Tutar (TL)]] -> 369,000,000.00
A102: 100 | B102: Ak Yatırım Menkul Değerler A.Ş. | C102: Finansal Kurum | D102: Borçlanma Aracı | E102: 2018-05-07 | F102: - | G102: 2018-05-31 | H102: Nitelikli Yatırımcı | I102: 400,000,000.00 | J102: =Table5402945[[#This Row],[Yurtiçi İhraç Limiti Nominal Tutar (TL)]]/4.4889 -> 89,108,690.33 | K102: 400,000,000.00 | L102: =Table5402945[[#This Row],[Yurtiçi İhraç Limiti Nominal Tutar (TL)]]-Table5402945[[#This Row],[Yurtiçi Satışı Gerçekleşen Nominal Tutar (TL)]] -> 0.00
A103: 101 | B103: Ak Yatırım Menkul Değerler A.Ş. | C103: Finansal Kurum | D103: Borçlanma Aracı | E103: 2018-05-07 | F103: - | G103: 2018-05-31 | H103: Nitelikli Yatırımcı | I103: 150,000,000.00 | J103: =Table5402945[[#This Row],[Yurtiçi İhraç Limiti Nominal Tutar (TL)]]/4.4889 -> 33,415,758.87 | K103: 15,298,000.00 | L103: =Table5402945[[#This Row],[Yurtiçi İhraç Limiti Nominal Tutar (TL)]]-Table5402945[[#This Row],[Yurtiçi Satışı Gerçekleşen Nominal Tutar (TL)]] -> 134,702,000.00
A104: 102 | B104: Bien Yapı Ürünleri Sanayi Turizm ve Ticaret A.Ş. | C104: Reel Sektör | D104: Borçlanma Aracı | E104: 2018-05-08 | F104: - | G104: 2018-05-31 | H104: Tahsisli | I104: 110,000,000.00 | J104: =Table5402945[[#This Row],[Yurtiçi İhraç Limiti Nominal Tutar (TL)]]/4.4889 -> 24,504,889.84 | K104: 110,000,000.00 | L104: =Table5402945[[#This Row],[Yurtiçi İhraç Limiti Nominal Tutar (TL)]]-Table5402945[[#This Row],[Yurtiçi Satışı Gerçekleşen Nominal Tutar (TL)]] -> 0.00
A105: 103 | B105: Bankpozitif Kredi ve Kalkınma Bankası A.Ş. | C105: Banka | D105: Borçlanma Aracı | E105: 2018-05-14 | F105: - | G105: 2018-05-31 | H105: Nitelikli Yatırımcı | I105: 350,000,000.00 | J105: =Table5402945[[#This Row],[Yurtiçi İhraç Limiti Nominal Tutar (TL)]]/4.4889 -> 77,970,104.03 | K105: 0.00 | L105: =Table5402945[[#This Row],[Yurtiçi İhraç Limiti Nominal Tutar (TL)]]-Table5402945[[#This Row],[Yurtiçi Satışı Gerçekleşen Nominal Tutar (TL)]] -> 350,000,000.00
A106: 104 | B106: Başer Faktoring A.Ş. | C106: Finansal Kurum | D106: Borçlanma Aracı | E106: 2018-05-16 | F106: - | G106: 2018-05-31 | H106: Nitelikli Yatırımcı | I106: 75,000,000.00 | J106: =Table5402945[[#This Row],[Yurtiçi İhraç Limiti Nominal Tutar (TL)]]/4.4889 -> 16,707,879.44 | K106: 0.00 | L106: =Table5402945[[#This Row],[Yurtiçi İhraç Limiti Nominal Tutar (TL)]]-Table5402945[[#This Row],[Yurtiçi Satışı Gerçekleşen Nominal Tutar (TL)]] -> 75,000,000.00
A107: 105 | B107: Aktif Yatırım Bankası A.Ş. (10) No’lu Varlık Finansmanı Fonu | C107: Fon | D107: VDMK | E107: 2018-04-16 | F107: - | G107: 2018-06-07 | H107: Nitelikli Yatırımcı | I107: 250,000,000.00 | J107: =Table5402945[[#This Row],[Yurtiçi İhraç Limiti Nominal Tutar (TL)]]/4.5571 -> 54,859,450.09 | K107: 240,000,000.00 | L107: =Table5402945[[#This Row],[Yurtiçi İhraç Limiti Nominal Tutar (TL)]]-Table5402945[[#This Row],[Yurtiçi Satışı Gerçekleşen Nominal Tutar (TL)]] -> 10,000,000.00
A108: 106 | B108: Ünlü Menkul Değerler A.Ş. Angora Varlık Finansmanı Fonu | C108: Fon | D108: VDMK | E108: 2018-04-19 | F108: - | G108: 2018-06-07 | H108: Tahsisli | I108: 2,000,000.00 | J108: =Table5402945[[#This Row],[Yurtiçi İhraç Limiti Nominal Tutar (TL)]]/4.5571 -> 438,875.60 | K108: 2,000,000.00 | L108: =Table5402945[[#This Row],[Yurtiçi İhraç Limiti Nominal Tutar (TL)]]-Table5402945[[#This Row],[Yurtiçi Satışı Gerçekleşen Nominal Tutar (TL)]] -> 0.00
A109: 107 | B109: SGT Sanayi ve Ticari Ürünler Dış Ticaret A.Ş. | C109: Reel Sektör | D109: Borçlanma Aracı | E109: 2018-05-11 | F109: - | G109: 2018-06-07 | H109: Tahsisli | I109: 600,000.00 | J109: =Table5402945[[#This Row],[Yurtiçi İhraç Limiti Nominal Tutar (TL)]]/4.5571 -> 131,662.68 | K109: 600,000.00 | L109: =Table5402945[[#This Row],[Yurtiçi İhraç Limiti Nominal Tutar (TL)]]-Table5402945[[#This Row],[Yurtiçi Satışı Gerçekleşen Nominal Tutar (TL)]] -> 0.00
A110: 108 | B110: Türk Ekonomi Bankası A.Ş. | C110: Banka | D110: Borçlanma Aracı | E110: 2018-05-14 | F110: - | G110: 2018-06-07 | H110: Halka Arz/Tahsisli/Nitelikli Yatırımcı | I110: 8,000,000,000.00 | J110: 2,033,186,263.00 | K110: 1,495,725,899.00 | L110: =Table5402945[[#This Row],[Yurtiçi İhraç Limiti Nominal Tutar (TL)]]-Table5402945[[#This Row],[Yurtiçi Satışı Gerçekleşen Nominal Tutar (TL)]] -> 6,504,274,101.00
A111: 109 | B111: İş Yatırım Menkul Değerler A.Ş. | C111: Finansal Kurum | D111: Borçlanma Aracı | E111: 2018-05-17 | F111: - | G111: 2018-06-07 | H111: Tahsisli/Nitelikli Yatırımcı | I111: 50,000,000.00 | J111: =Table5402945[[#This Row],[Yurtiçi İhraç Limiti Nominal Tutar (TL)]]/4.5571 -> 10,971,890.02 | K111: 0.00 | L111: =Table5402945[[#This Row],[Yurtiçi İhraç Limiti Nominal Tutar (TL)]]-Table5402945[[#This Row],[Yurtiçi Satışı Gerçekleşen Nominal Tutar (TL)]] -> 50,000,000.00
A112: 110 | B112: İş Yatırım Menkul Değerler A.Ş. | C112: Finansal Kurum | D112: Borçlanma Aracı | E112: 2018-05-17 | F112: - | G112: 2018-06-07 | H112: Tahsisli/Nitelikli Yatırımcı | I112: 1,047,000,000.00 | J112: =Table5402945[[#This Row],[Yurtiçi İhraç Limiti Nominal Tutar (TL)]]/4.5571 -> 229,751,376.97 | K112: 1,041,714,000.00 | L112: =Table5402945[[#This Row],[Yurtiçi İhraç Limiti Nominal Tutar (TL)]]-Table5402945[[#This Row],[Yurtiçi Satışı Gerçekleşen Nominal Tutar (TL)]] -> 5,286,000.00
A113: 111 | B113: Halk Varlık Kiralama A.Ş. | C113: Finansal Kurum | D113: Kira Sertifikası | E113: 2018-05-17 | F113: - | G113: 2018-06-07 | H113: Tahsisli/Nitelikli Yatırımcı | I113: 600,000,000.00 | J113: =Table5402945[[#This Row],[Yurtiçi İhraç Limiti Nominal Tutar (TL)]]/4.5571 -> 131,662,680.21 | K113: 0.00 | L113: =Table5402945[[#This Row],[Yurtiçi İhraç Limiti Nominal Tutar (TL)]]-Table5402945[[#This Row],[Yurtiçi Satışı Gerçekleşen Nominal Tutar (TL)]] -> 600,000,000.00
A114: 112 | B114: Aktif Yatırım Bankası A.Ş. | C114: Banka | D114: Borçlanma Aracı | E114: 2018-05-21 | F114: - | G114: 2018-06-07 | H114: Nitelikli Yatırımcı | I114: 650,000,000.00 | J114: =Table5402945[[#This Row],[Yurtiçi İhraç Limiti Nominal Tutar (TL)]]/4.5571 -> 142,634,570.23 | K114: 650,000,000.00 | L114: =Table5402945[[#This Row],[Yurtiçi İhraç Limiti Nominal Tutar (TL)]]-Table5402945[[#This Row],[Yurtiçi Satışı Gerçekleşen Nominal Tutar (TL)]] -> 0.00
A115: 113 | B115: Migros Ticaret A.Ş. | C115: Reel Sektör | D115: Borçlanma Aracı | E115: 2018-05-28 | F115: - | G115: 2018-06-07 | H115: Tahsisli/Nitelikli Yatırımcı | I115: 1,000,000,000.00 | J115: =Table5402945[[#This Row],[Yurtiçi İhraç Limiti Nominal Tutar (TL)]]/4.5571 -> 219,437,800.36 | K115: 196,000,000.00 | L115: =Table5402945[[#This Row],[Yurtiçi İhraç Limiti Nominal Tutar (TL)]]-Table5402945[[#This Row],[Yurtiçi Satışı Gerçekleşen Nominal Tutar (TL)]] -> 804,000,000.00
A116: 114 | B116: Türkiye Garanti Bankası A.Ş. | C116: Banka | D116: Varant | E116: 2018-03-20 | F116: - | G116: 2018-06-20 | H116: Halka Arz | I116: 50,000,000.00 | J116: =Table5402945[[#This Row],[Yurtiçi İhraç Limiti Nominal Tutar (TL)]]/4.7573 -> 10,510,163.33 | K116: 0.00 | L116: =Table5402945[[#This Row],[Yurtiçi İhraç Limiti Nominal Tutar (TL)]]-Table5402945[[#This Row],[Yurtiçi Satışı Gerçekleşen Nominal Tutar (TL)]] -> 50,000,000.00
A117: 115 | B117: Nurol Varlık Kiralama A.Ş. | C117: Finansal Kurum | D117: Kira Sertifikası | E117: 2018-05-14 | F117: - | G117: 2018-06-20 | H117: Tahsisli/Nitelikli Yatırımcı | I117: 400,000,000.00 | J117: =Table5402945[[#This Row],[Yurtiçi İhraç Limiti Nominal Tutar (TL)]]/4.7573 -> 84,081,306.62 | K117: 372,660,000.00 | L117: =Table5402945[[#This Row],[Yurtiçi İhraç Limiti Nominal Tutar (TL)]]-Table5402945[[#This Row],[Yurtiçi Satışı Gerçekleşen Nominal Tutar (TL)]] -> 27,340,000.00
A118: 116 | B118: Türk Ekonomi Bankası A.Ş. | C118: Banka | D118: Borçlanma Aracı | E118: 2018-05-25 | F118: - | G118: 2018-06-20 | H118: Yurtdışı | M118: 125,000,000.00 | N118: Avro | O118: 125,000,000.00 | P118: =Table5402945[[#This Row],[Yurtdışı İhraç Limiti Nominal Tutar]]-Table5402945[[#This Row],[Yurtdışı Satışı Gerçekleşen Nominal Tutar]] -> 0.00 | Q118: =Table5402945[[#This Row],[Yurtdışı Satışı Gerçekleşen Nominal Tutar]]*6.053 -> 756,625,000.00
A119: 117 | B119: QNB Finans Faktoring A.Ş.*** | C119: Finansal Kurum | D119: Borçlanma Aracı | E119: 2018-06-04 | F119: - | G119: 2018-06-20 | H119: Tahsisli/Nitelikli Yatırımcı | I119: 244,581,000.00 | J119: =Table5402945[[#This Row],[Yurtiçi İhraç Limiti Nominal Tutar (TL)]]/4.7573 -> 51,411,725.14 | K119: 239,705,000.00 | L119: =Table5402945[[#This Row],[Yurtiçi İhraç Limiti Nominal Tutar (TL)]]-Table5402945[[#This Row],[Yurtiçi Satışı Gerçekleşen Nominal Tutar (TL)]]-4876000 -> 0.00
A120: 118 | B120: Denizbank A.Ş. | C120: Banka | D120: Borçlanma Aracı | E120: 2018-03-01 | F120: - | G120: 2018-06-28 | H120: Nitelikli Yatırımcı | I120: 550,000,000.00 | J120: =Table5402945[[#This Row],[Yurtiçi İhraç Limiti Nominal Tutar (TL)]]/4.6166 -> 119,135,294.37 | K120: 0.00 | L120: =Table5402945[[#This Row],[Yurtiçi İhraç Limiti Nominal Tutar (TL)]]-Table5402945[[#This Row],[Yurtiçi Satışı Gerçekleşen Nominal Tutar (TL)]] -> 550,000,000.00
A121: 119 | B121: Aktif Yatırım Bankası A.Ş. (7) No’lu Emek Varlık Finansmanı Fonu | C121: Fon | D121: VDMK | E121: 2018-05-24 | F121: - | G121: 2018-06-28 | H121: Nitelikli Yatırımcı | I121: 600,000,000.00 | J121: =Table5402945[[#This Row],[Yurtiçi İhraç Limiti Nominal Tutar (TL)]]/4.6166 -> 129,965,775.68 | K121: 400,000,000.00 | L121: =Table5402945[[#This Row],[Yurtiçi İhraç Limiti Nominal Tutar (TL)]]-Table5402945[[#This Row],[Yurtiçi Satışı Gerçekleşen Nominal Tutar (TL)]] -> 200,000,000.00
A122: 120 | B122: Derimod Konfeksiyon Ayakkabı Deri Sanayi ve Ticaret A.Ş. | C122: Reel Sektör | D122: Borçlanma Aracı | E122: 2018-06-01 | F122: - | G122: 2018-06-28 | H122: Nitelikli Yatırımcı | I122: 75,000,000.00 | J122: =Table5402945[[#This Row],[Yurtiçi İhraç Limiti Nominal Tutar (TL)]]/4.6166 -> 16,245,721.96 | K122: 0.00 | L122: =Table5402945[[#This Row],[Yurtiçi İhraç Limiti Nominal Tutar (TL)]]-Table5402945[[#This Row],[Yurtiçi Satışı Gerçekleşen Nominal Tutar (TL)]] -> 75,000,000.00
A123: 121 | B123: Tam Faktoring A.Ş. | C123: Finansal Kurum | D123: Borçlanma Aracı | E123: 2018-06-04 | F123: - | G123: 2018-06-28 | H123: Tahsisli/Nitelikli Yatırımcı | I123: 160,000,000.00 | J123: =Table5402945[[#This Row],[Yurtiçi İhraç Limiti Nominal Tutar (TL)]]/4.6166 -> 34,657,540.18 | K123: 0.00 | L123: =Table5402945[[#This Row],[Yurtiçi İhraç Limiti Nominal Tutar (TL)]]-Table5402945[[#This Row],[Yurtiçi Satışı Gerçekleşen Nominal Tutar (TL)]] -> 160,000,000.00
A124: 122 | B124: Çağdaş Faktoring A.Ş. | C124: Finansal Kurum | D124: Borçlanma Aracı | E124: 2018-06-05 | F124: - | G124: 2018-06-28 | H124: Nitelikli Yatırımcı | I124: 130,000,000.00 | J124: =Table5402945[[#This Row],[Yurtiçi İhraç Limiti Nominal Tutar (TL)]]/4.6166 -> 28,159,251.40 | K124: 0.00 | L124: =Table5402945[[#This Row],[Yurtiçi İhraç Limiti Nominal Tutar (TL)]]-Table5402945[[#This Row],[Yurtiçi Satışı Gerçekleşen Nominal Tutar (TL)]] -> 130,000,000.00
A125: 123 | B125: Oyak Yatırım Menkul Değerler A.Ş. | C125: Finansal Kurum | D125: Borçlanma Aracı | E125: 2018-06-12 | F125: - | G125: 2018-06-28 | H125: Nitelikli Yatırımcı | I125: 100,000,000.00 | J125: =Table5402945[[#This Row],[Yurtiçi İhraç Limiti Nominal Tutar (TL)]]/4.6166 -> 21,660,962.61 | K125: 99,280,000.00 | L125: =Table5402945[[#This Row],[Yurtiçi İhraç Limiti Nominal Tutar (TL)]]-Table5402945[[#This Row],[Yurtiçi Satışı Gerçekleşen Nominal Tutar (TL)]] -> 720,000.00
A126: 124 | B126: CCN Mersin Sağlık A.Ş. | C126: Reel Sektör | D126: Borçlanma Aracı | E126: 2018-04-19 | F126: - | G126: 2018-07-05 | H126: Yurtdışı | M126: 350,000,000.00 | N126: Avro | O126: 0.00 | P126: =Table5402945[[#This Row],[Yurtdışı İhraç Limiti Nominal Tutar]]-Table5402945[[#This Row],[Yurtdışı Satışı Gerçekleşen Nominal Tutar]] -> 350,000,000.00 | Q126: =Table5402945[[#This Row],[Yurtdışı Satışı Gerçekleşen Nominal Tutar]]*6.053 -> 0.00
A127: 125 | B127: Yapı Kredi Yatırım Menkul Değerler A.Ş. | C127: Finansal Kurum | D127: Borçlanma Aracı | E127: 2018-06-01 | F127: - | G127: 2018-07-05 | H127: Tahsisli/Nitelikli Yatırımcı | I127: 889,000,000.00 | J127: =Table5402945[[#This Row],[Yurtiçi İhraç Limiti Nominal Tutar (TL)]]/4.651 -> 191,141,689.96 | K127: 889,000,000.00 | L127: =Table5402945[[#This Row],[Yurtiçi İhraç Limiti Nominal Tutar (TL)]]-Table5402945[[#This Row],[Yurtiçi Satışı Gerçekleşen Nominal Tutar (TL)]] -> 0.00
A128: 126 | B128: Alternatifbank A.Ş. | C128: Banka | D128: Borçlanma Aracı | E128: 2018-06-01 | F128: - | G128: 2018-07-05 | H128: Nitelikli Yatırımcı | I128: 1,100,000,000.00 | J128: =Table5402945[[#This Row],[Yurtiçi İhraç Limiti Nominal Tutar (TL)]]/4.651 -> 236,508,277.79 | K128: 573,218,000.00 | L128: =Table5402945[[#This Row],[Yurtiçi İhraç Limiti Nominal Tutar (TL)]]-Table5402945[[#This Row],[Yurtiçi Satışı Gerçekleşen Nominal Tutar (TL)]] -> 526,782,000.00
A129: 127 | B129: Tera Yatırım Menkul Değerler A.Ş. | C129: Finansal Kurum | D129: Borçlanma Aracı | E129: 2018-06-11 | F129: - | G129: 2018-07-05 | H129: Tahsisli/Nitelikli Yatırımcı | I129: 95,000,000.00 | J129: =Table5402945[[#This Row],[Yurtiçi İhraç Limiti Nominal Tutar (TL)]]/4.651 -> 20,425,714.90 | K129: 30,000,000.00 | L129: =Table5402945[[#This Row],[Yurtiçi İhraç Limiti Nominal Tutar (TL)]]-Table5402945[[#This Row],[Yurtiçi Satışı Gerçekleşen Nominal Tutar (TL)]] -> 65,000,000.00
A130: 128 | B130: QNB Finans Yatırım Menkul Değerler A.Ş. | C130: Finansal Kurum | D130: Borçlanma Aracı | E130: 2018-06-12 | F130: - | G130: 2018-07-05 | H130: Tahsisli/Nitelikli Yatırımcı | I130: 300,000,000.00 | J130: =Table5402945[[#This Row],[Yurtiçi İhraç Limiti Nominal Tutar (TL)]]/4.651 -> 64,502,257.58 | K130: 60,000,000.00 | L130: =Table5402945[[#This Row],[Yurtiçi İhraç Limiti Nominal Tutar (TL)]]-Table5402945[[#This Row],[Yurtiçi Satışı Gerçekleşen Nominal Tutar (TL)]] -> 240,000,000.00
A131: 129 | B131: QNB Finans Yatırım Menkul Değerler A.Ş. | C131: Finansal Kurum | D131: Borçlanma Aracı | E131: 2018-06-12 | F131: - | G131: 2018-07-05 | H131: Nitelikli Yatırımcı | I131: 125,000,000.00 | J131: =Table5402945[[#This Row],[Yurtiçi İhraç Limiti Nominal Tutar (TL)]]/4.651 -> 26,875,940.66 | K131: 0.00 | L131: =Table5402945[[#This Row],[Yurtiçi İhraç Limiti Nominal Tutar (TL)]]-Table5402945[[#This Row],[Yurtiçi Satışı Gerçekleşen Nominal Tutar (TL)]] -> 125,000,000.00
A132: 130 | B132: Eko Faktoring A.Ş. | C132: Finansal Kurum | D132: Borçlanma Aracı | E132: 2018-06-13 | F132: - | G132: 2018-07-05 | H132: Nitelikli Yatırımcı | I132: 103,000,000.00 | J132: =Table5402945[[#This Row],[Yurtiçi İhraç Limiti Nominal Tutar (TL)]]/4.651 -> 22,145,775.10 | K132: 20,447,700.00 | L132: =Table5402945[[#This Row],[Yurtiçi İhraç Limiti Nominal Tutar (TL)]]-Table5402945[[#This Row],[Yurtiçi Satışı Gerçekleşen Nominal Tutar (TL)]] -> 82,552,300.00
A133: 131 | B133: Vakıf Faktoring A.Ş. | C133: Finansal Kurum | D133: Borçlanma Aracı | E133: 2018-06-18 | F133: - | G133: 2018-07-05 | H133: Nitelikli Yatırımcı | I133: 435,000,000.00 | J133: =Table5402945[[#This Row],[Yurtiçi İhraç Limiti Nominal Tutar (TL)]]/4.651 -> 93,528,273.49 | K133: 435,000,000.00 | L133: =Table5402945[[#This Row],[Yurtiçi İhraç Limiti Nominal Tutar (TL)]]-Table5402945[[#This Row],[Yurtiçi Satışı Gerçekleşen Nominal Tutar (TL)]] -> 0.00
A134: 132 | B134: Deniz Faktoring A.Ş. | C134: Finansal Kurum | D134: Borçlanma Aracı | E134: 2018-06-19 | F134: - | G134: 2018-07-05 | H134: Nitelikli Yatırımcı | I134: 334,000,000.00 | J134: =Table5402945[[#This Row],[Yurtiçi İhraç Limiti Nominal Tutar (TL)]]/4.651 -> 71,812,513.44 | K134: 318,300,000.00 | L134: =Table5402945[[#This Row],[Yurtiçi İhraç Limiti Nominal Tutar (TL)]]-Table5402945[[#This Row],[Yurtiçi Satışı Gerçekleşen Nominal Tutar (TL)]] -> 15,700,000.00
A135: 133 | B135: Halk Yatırım Menkul Değerler A.Ş. | C135: Finansal Kurum | D135: Borçlanma Aracı | E135: 2018-06-25 | F135: - | G135: 2018-07-11 | H135: Nitelikli Yatırımcı | I135: 260,000,000.00 | J135: =Table5402945[[#This Row],[Yurtiçi İhraç Limiti Nominal Tutar (TL)]]/4.7574 -> 54,651,700.51 | K135: 185,000,000.00 | L135: =Table5402945[[#This Row],[Yurtiçi İhraç Limiti Nominal Tutar (TL)]]-Table5402945[[#This Row],[Yurtiçi Satışı Gerçekleşen Nominal Tutar (TL)]] -> 75,000,000.00
A136: 134 | B136: Odea Bank A.Ş. | C136: Banka | D136: Borçlanma Aracı | E136: 2018-05-24 | F136: - | G136: 2018-07-19 | H136: Tahsisli/Nitelikli Yatırımcı | I136: 900,000,000.00 | J136: =Table5402945[[#This Row],[Yurtiçi İhraç Limiti Nominal Tutar (TL)]]/4.8317 -> 186,269,842.91 | K136: 486,140,000.00 | L136: =Table5402945[[#This Row],[Yurtiçi İhraç Limiti Nominal Tutar (TL)]]-Table5402945[[#This Row],[Yurtiçi Satışı Gerçekleşen Nominal Tutar (TL)]] -> 413,860,000.00
A137: 135 | B137: Fibabanka A.Ş. | C137: Banka | D137: Borçlanma Aracı | E137: 2018-06-12 | F137: - | G137: 2018-07-19 | H137: Tahsisli/Nitelikli Yatırımcı | I137: 1,044,000,000.00 | J137: =Table5402945[[#This Row],[Yurtiçi İhraç Limiti Nominal Tutar (TL)]]/4.8317 -> 216,073,017.78 | K137: 1,008,020,000.00 | L137: =Table5402945[[#This Row],[Yurtiçi İhraç Limiti Nominal Tutar (TL)]]-Table5402945[[#This Row],[Yurtiçi Satışı Gerçekleşen Nominal Tutar (TL)]] -> 35,980,000.00
A138: 136 | B138: Çelikler Taahhüt İnşaat ve Sanayi A.Ş. | C138: Reel Sektör | D138: Borçlanma Aracı | E138: 2018-06-26 | F138: - | G138: 2018-07-19 | H138: Nitelikli Yatırımcı | I138: 500,000,000.00 | J138: =Table5402945[[#This Row],[Yurtiçi İhraç Limiti Nominal Tutar (TL)]]/4.8317 -> 103,483,246.06 | K138: 0.00 | L138: =Table5402945[[#This Row],[Yurtiçi İhraç Limiti Nominal Tutar (TL)]]-Table5402945[[#This Row],[Yurtiçi Satışı Gerçekleşen Nominal Tutar (TL)]] -> 500,000,000.00
A139: 137 | B139: Timur Gayrimenkul Geliştirme Yapı ve Yatırım A.Ş. | C139: Reel Sektör | D139: Borçlanma Aracı | E139: 2018-06-26 | F139: - | G139: 2018-07-19 | H139: Nitelikli Yatırımcı | I139: 600,000,000.00 | J139: =Table5402945[[#This Row],[Yurtiçi İhraç Limiti Nominal Tutar (TL)]]/4.8317 -> 124,179,895.27 | K139: 0.00 | L139: =Table5402945[[#This Row],[Yurtiçi İhraç Limiti Nominal Tutar (TL)]]-Table5402945[[#This Row],[Yurtiçi Satışı Gerçekleşen Nominal Tutar (TL)]] -> 600,000,000.00
A140: 138 | B140: Garanti Faktoring A.Ş. | C140: Finansal Kurum | D140: Borçlanma Aracı | E140: 2018-06-29 | F140: - | G140: 2018-07-19 | H140: Nitelikli Yatırımcı | I140: 650,000,000.00 | J140: =Table5402945[[#This Row],[Yurtiçi İhraç Limiti Nominal Tutar (TL)]]/4.8317 -> 134,528,219.88 | K140: 565,280,000.00 | L140: =Table5402945[[#This Row],[Yurtiçi İhraç Limiti Nominal Tutar (TL)]]-Table5402945[[#This Row],[Yurtiçi Satışı Gerçekleşen Nominal Tutar (TL)]] -> 84,720,000.00
A141: 139 | B141: Nurol Yatırım Bankası A.Ş. | C141: Banka | D141: Borçlanma Aracı | E141: 2018-07-06 | F141: - | G141: 2018-07-19 | H141: Nitelikli Yatırımcı | I141: 600,000,000.00 | J141: =Table5402945[[#This Row],[Yurtiçi İhraç Limiti Nominal Tutar (TL)]]/4.8317 -> 124,179,895.27 | K141: 510,000,000.00 | L141: =Table5402945[[#This Row],[Yurtiçi İhraç Limiti Nominal Tutar (TL)]]-Table5402945[[#This Row],[Yurtiçi Satışı Gerçekleşen Nominal Tutar (TL)]] -> 90,000,000.00
A142: 140 | B142: ING Bank A.Ş. | C142: Banka | D142: Borçlanma Aracı | E142: 2018-07-12 | F142: - | G142: 2018-07-19 | H142: Nitelikli Yatırımcı | I142: 4,000,000,000.00 | J142: =Table5402945[[#This Row],[Yurtiçi İhraç Limiti Nominal Tutar (TL)]]/4.8317 -> 827,865,968.50 | K142: 0.00 | L142: =Table5402945[[#This Row],[Yurtiçi İhraç Limiti Nominal Tutar (TL)]]-Table5402945[[#This Row],[Yurtiçi Satışı Gerçekleşen Nominal Tutar (TL)]] -> 4,000,000,000.00
A143: 141 | B143: Aktif Bank Sukuk Varlık Kiralama A.Ş. | C143: Finansal Kurum | D143: Kira Sertifikası | E143: 2018-03-13 | F143: - | G143: 2018-07-25 | H143: Nitelikli Yatırımcı | I143: 100,000,000.00 | J143: =Table5402945[[#This Row],[Yurtiçi İhraç Limiti Nominal Tutar (TL)]]/4.8628 -> 20,564,283.95 | K143: 0.00 | L143: =Table5402945[[#This Row],[Yurtiçi İhraç Limiti Nominal Tutar (TL)]]-Table5402945[[#This Row],[Yurtiçi Satışı Gerçekleşen Nominal Tutar (TL)]] -> 100,000,000.00
A144: 142 | B144: İş Yatırım Menkul Değerler A.Ş. | C144: Finansal Kurum | D144: Borçlanma Aracı | E144: 2018-07-09 | F144: - | G144: 2018-07-25 | H144: Tahsisli/Nitelikli Yatırımcı | I144: 1,200,000,000.00 | J144: =Table5402945[[#This Row],[Yurtiçi İhraç Limiti Nominal Tutar (TL)]]/4.8628 -> 246,771,407.42 | K144: 1,195,103,000.00 | L144: =Table5402945[[#This Row],[Yurtiçi İhraç Limiti Nominal Tutar (TL)]]-Table5402945[[#This Row],[Yurtiçi Satışı Gerçekleşen Nominal Tutar (TL)]] -> 4,897,000.00
A145: 143 | B145: Nobel İlaç Sanayii ve Ticaret A.Ş. | C145: Reel Sektör | D145: Borçlanma Aracı | E145: 2018-07-10 | F145: - | G145: 2018-07-25 | H145: Nitelikli Yatırımcı | I145: 150,000,000.00 | J145: =Table5402945[[#This Row],[Yurtiçi İhraç Limiti Nominal Tutar (TL)]]/4.8628 -> 30,846,425.93 | K145: 0.00 | L145: =Table5402945[[#This Row],[Yurtiçi İhraç Limiti Nominal Tutar (TL)]]-Table5402945[[#This Row],[Yurtiçi Satışı Gerçekleşen Nominal Tutar (TL)]] -> 150,000,000.00
A146: 144 | B146: Nurol Holding A.Ş. | C146: Reel Sektör | D146: Borçlanma Aracı | E146: 2018-07-12 | F146: - | G146: 2018-07-25 | H146: Tahsisli/Nitelikli Yatırımcı | I146: 500,000,000.00 | J146: =Table5402945[[#This Row],[Yurtiçi İhraç Limiti Nominal Tutar (TL)]]/4.8628 -> 102,821,419.76 | K146: 500,000,000.00 | L146: =Table5402945[[#This Row],[Yurtiçi İhraç Limiti Nominal Tutar (TL)]]-Table5402945[[#This Row],[Yurtiçi Satışı Gerçekleşen Nominal Tutar (TL)]] -> 0.00
A147: 145 | B147: Alternatif Finansal Kiralama A.Ş. | C147: Finansal Kurum | D147: Borçlanma Aracı | E147: 2018-06-25 | F147: - | G147: 2018-08-02 | H147: Nitelikli Yatırımcı | I147: 505,228,000.00 | J147: =Table5402945[[#This Row],[Yurtiçi İhraç Limiti Nominal Tutar (TL)]]/5.0595 -> 99,857,298.15 | K147: 483,679,000.00 | L147: =Table5402945[[#This Row],[Yurtiçi İhraç Limiti Nominal Tutar (TL)]]-Table5402945[[#This Row],[Yurtiçi Satışı Gerçekleşen Nominal Tutar (TL)]] -> 21,549,000.00
A148: 146 | B148: Vakıf Gayrimenkul Yatırım Ortaklığı A.Ş. | C148: Reel Sektör | D148: Borçlanma Aracı | E148: 2018-07-02 | F148: - | G148: 2018-08-02 | H148: Nitelikli Yatırımcı | I148: 800,000,000.00 | J148: =Table5402945[[#This Row],[Yurtiçi İhraç Limiti Nominal Tutar (TL)]]/5.0595 -> 158,118,391.15 | K148: 100,000,000.00 | L148: =Table5402945[[#This Row],[Yurtiçi İhraç Limiti Nominal Tutar (TL)]]-Table5402945[[#This Row],[Yurtiçi Satışı Gerçekleşen Nominal Tutar (TL)]] -> 700,000,000.00
A149: 147 | B149: Doğuş Otomotiv Servis ve Ticaret A.Ş. | C149: Reel Sektör | D149: Borçlanma Aracı | E149: 2018-07-04 | F149: - | G149: 2018-08-02 | H149: Nitelikli Yatırımcı | I149: 750,000,000.00 | J149: =Table5402945[[#This Row],[Yurtiçi İhraç Limiti Nominal Tutar (TL)]]/5.0595 -> 148,235,991.70 | K149: 0.00 | L149: =Table5402945[[#This Row],[Yurtiçi İhraç Limiti Nominal Tutar (TL)]]-Table5402945[[#This Row],[Yurtiçi Satışı Gerçekleşen Nominal Tutar (TL)]] -> 750,000,000.00
A150: 148 | B150: ING Faktoring A.Ş. | C150: Finansal Kurum | D150: Borçlanma Aracı | E150: 2018-07-12 | F150: - | G150: 2018-08-02 | H150: Nitelikli Yatırımcı | I150: 260,000,000.00 | J150: =Table5402945[[#This Row],[Yurtiçi İhraç Limiti Nominal Tutar (TL)]]/5.0595 -> 51,388,477.12 | K150: 0.00 | L150: =Table5402945[[#This Row],[Yurtiçi İhraç Limiti Nominal Tutar (TL)]]-Table5402945[[#This Row],[Yurtiçi Satışı Gerçekleşen Nominal Tutar (TL)]] -> 260,000,000.00
A151: 149 | B151: Deniz Gayrimenkul Yatırım Ortaklığı A.Ş. | C151: Reel Sektör | D151: Borçlanma Aracı | E151: 2018-07-17 | F151: - | G151: 2018-08-02 | H151: Nitelikli Yatırımcı | I151: 250,000,000.00 | J151: =Table5402945[[#This Row],[Yurtiçi İhraç Limiti Nominal Tutar (TL)]]/5.0595 -> 49,411,997.23 | K151: 100,000,000.00 | L151: =Table5402945[[#This Row],[Yurtiçi İhraç Limiti Nominal Tutar (TL)]]-Table5402945[[#This Row],[Yurtiçi Satışı Gerçekleşen Nominal Tutar (TL)]] -> 150,000,000.00
A152: 150 | B152: Invest AZ Yatırım Menkul Değerler A.Ş. | C152: Finansal Kurum | D152: Borçlanma Aracı | E152: 2018-04-03 | F152: - | G152: 2018-08-09 | H152: Tahsisli/Nitelikli Yatırımcı | I152: 10,000,000.00 | J152: =Table5402945[[#This Row],[Yurtiçi İhraç Limiti Nominal Tutar (TL)]]/5.4085 -> 1,848,941.48 | K152: 5,720,000.00 | L152: =Table5402945[[#This Row],[Yurtiçi İhraç Limiti Nominal Tutar (TL)]]-Table5402945[[#This Row],[Yurtiçi Satışı Gerçekleşen Nominal Tutar (TL)]] -> 4,280,000.00
A153: 151 | B153: Halk Varlık Kiralama A.Ş. | C153: Finansal Kurum | D153: Kira Sertifikası | E153: 2018-06-05 | F153: - | G153: 2018-08-09 | H153: Tahsisli/Nitelikli Yatırımcı | I153: 4,000,000,000.00 | J153: =Table5402945[[#This Row],[Yurtiçi İhraç Limiti Nominal Tutar (TL)]]/5.4085 -> 739,576,592.40 | K153: 0.00 | L153: =Table5402945[[#This Row],[Yurtiçi İhraç Limiti Nominal Tutar (TL)]]-Table5402945[[#This Row],[Yurtiçi Satışı Gerçekleşen Nominal Tutar (TL)]] -> 4,000,000,000.00
A154: 152 | B154: Doruk Finansman A.Ş. | C154: Finansal Kurum | D154: Borçlanma Aracı | E154: 2018-06-07 | F154: - | G154: 2018-08-09 | H154: Nitelikli Yatırımcı | I154: 67,000,000.00 | J154: =Table5402945[[#This Row],[Yurtiçi İhraç Limiti Nominal Tutar (TL)]]/5.4085 -> 12,387,907.92 | K154: 0.00 | L154: =Table5402945[[#This Row],[Yurtiçi İhraç Limiti Nominal Tutar (TL)]]-Table5402945[[#This Row],[Yurtiçi Satışı Gerçekleşen Nominal Tutar (TL)]] -> 67,000,000.00
A155: 153 | B155: Doruk Faktoring A.Ş. | C155: Finansal Kurum | D155: Borçlanma Aracı | E155: 2018-06-08 | F155: - | G155: 2018-08-09 | H155: Nitelikli Yatırımcı | I155: 127,000,000.00 | J155: =Table5402945[[#This Row],[Yurtiçi İhraç Limiti Nominal Tutar (TL)]]/5.4085 -> 23,481,556.81 | K155: 55,000,000.00 | L155: =Table5402945[[#This Row],[Yurtiçi İhraç Limiti Nominal Tutar (TL)]]-Table5402945[[#This Row],[Yurtiçi Satışı Gerçekleşen Nominal Tutar (TL)]] -> 72,000,000.00
A156: 154 | B156: Türkiye Vakıflar Bankası T.A.O. | C156: Banka | D156: Borçlanma Aracı | E156: 2018-07-02 | F156: - | G156: 2018-08-09 | H156: Halka Arz/Tahsisli/Nitelikli Yatırımcı | I156: 20,000,000,000.00 | J156: =Table5402945[[#This Row],[Yurtiçi İhraç Limiti Nominal Tutar (TL)]]/5.4085 -> 3,697,882,962.00 | K156: 6,438,860,994.00 | L156: =Table5402945[[#This Row],[Yurtiçi İhraç Limiti Nominal Tutar (TL)]]-Table5402945[[#This Row],[Yurtiçi Satışı Gerçekleşen Nominal Tutar (TL)]] -> 13,561,139,006.00
A157: 155 | B157: Sarten Ambalaj Sanayi ve Ticaret A.Ş. | C157: Reel Sektör | D157: Borçlanma Aracı | E157: 2018-07-12 | F157: - | G157: 2018-08-09 | H157: Nitelikli Yatırımcı | I157: 100,000,000.00 | J157: =Table5402945[[#This Row],[Yurtiçi İhraç Limiti Nominal Tutar (TL)]]/5.4085 -> 18,489,414.81 | K157: 0.00 | L157: =Table5402945[[#This Row],[Yurtiçi İhraç Limiti Nominal Tutar (TL)]]-Table5402945[[#This Row],[Yurtiçi Satışı Gerçekleşen Nominal Tutar (TL)]] -> 100,000,000.00
A158: 156 | B158: Lider Faktoring A.Ş. | C158: Finansal Kurum | D158: Borçlanma Aracı | E158: 2018-07-17 | F158: - | G158: 2018-08-09 | H158: Tahsisli/Nitelikli Yatırımcı | I158: 200,000,000.00 | J158: =Table5402945[[#This Row],[Yurtiçi İhraç Limiti Nominal Tutar (TL)]]/5.4085 -> 36,978,829.62 | K158: 0.00 | L158: =Table5402945[[#This Row],[Yurtiçi İhraç Limiti Nominal Tutar (TL)]]-Table5402945[[#This Row],[Yurtiçi Satışı Gerçekleşen Nominal Tutar (TL)]] -> 200,000,000.00
A159: 157 | B159: Şeker Faktoring A.Ş. | C159: Finansal Kurum | D159: Borçlanma Aracı | E159: 2018-06-27 | F159: - | G159: 2018-08-16 | H159: Halka Arz/Tahsisli/Nitelikli Yatırımcı | I159: 137,203,200.00 | J159: =Table5402945[[#This Row],[Yurtiçi İhraç Limiti Nominal Tutar (TL)]]/5.8087 -> 23,620,293.70 | K159: 137,146,000.00 | L159: =Table5402945[[#This Row],[Yurtiçi İhraç Limiti Nominal Tutar (TL)]]-Table5402945[[#This Row],[Yurtiçi Satışı Gerçekleşen Nominal Tutar (TL)]] -> 57,200.00
A160: 158 | B160: Türkiye Halk Bankası A.Ş. | C160: Banka | D160: Borçlanma Aracı | E160: 2018-07-23 | F160: - | G160: 2018-08-16 | H160: Nitelikli Yatırımcı | I160: 5,000,000,000.00 | J160: =Table5402945[[#This Row],[Yurtiçi İhraç Limiti Nominal Tutar (TL)]]/5.8087 -> 860,777,798.82 | K160: 2,979,795,000.00 | L160: =Table5402945[[#This Row],[Yurtiçi İhraç Limiti Nominal Tutar (TL)]]-Table5402945[[#This Row],[Yurtiçi Satışı Gerçekleşen Nominal Tutar (TL)]] -> 2,020,205,000.00
A161: 159 | B161: Halk Varlık Kiralama A.Ş. | C161: Finansal Kurum | D161: Kira Sertifikası | E161: 2018-07-24 | F161: - | G161: 2018-08-16 | H161: Tahsisli/Nitelikli Yatırımcı | I161: 2,000,000,000.00 | J161: =Table5402945[[#This Row],[Yurtiçi İhraç Limiti Nominal Tutar (TL)]]/5.8087 -> 344,311,119.53 | K161: 822,000,000.00 | L161: =Table5402945[[#This Row],[Yurtiçi İhraç Limiti Nominal Tutar (TL)]]-Table5402945[[#This Row],[Yurtiçi Satışı Gerçekleşen Nominal Tutar (TL)]] -> 1,178,000,000.00
A162: 160 | B162: Şeker Finansal Kiralama A.Ş.*** | C162: Finansal Kurum | D162: Borçlanma Aracı | E162: 2018-07-30 | F162: - | G162: 2018-08-16 | H162: Nitelikli Yatırımcı | I162: 78,000,000.00 | J162: =Table5402945[[#This Row],[Yurtiçi İhraç Limiti Nominal Tutar (TL)]]/5.8087 -> 13,428,133.66 | K162: 0.00 | L162: =Table5402945[[#This Row],[Yurtiçi İhraç Limiti Nominal Tutar (TL)]]-Table5402945[[#This Row],[Yurtiçi Satışı Gerçekleşen Nominal Tutar (TL)]]-78000000 -> 0.00
A163: 161 | B163: Pasha Yatırım Bankası A.Ş. | C163: Banka | D163: Borçlanma Aracı | E163: 2018-08-06 | F163: - | G163: 2018-08-16 | H163: Yurtdışı | M163: 300,000,000.00 | N163: Türk Lirası | O163: 0.00 | P163: =Table5402945[[#This Row],[Yurtdışı İhraç Limiti Nominal Tutar]]-Table5402945[[#This Row],[Yurtdışı Satışı Gerçekleşen Nominal Tutar]] -> 300,000,000.00 | Q163: =Table5402945[[#This Row],[Yurtdışı Satışı Gerçekleşen Nominal Tutar]]*1 -> 0.00
A164: 162 | B164: İş Faktoring A.Ş.*** | C164: Finansal Kurum | D164: Borçlanma Aracı | E164: 2018-08-06 | F164: - | G164: 2018-08-16 | H164: Nitelikli Yatırımcı | I164: 469,000,000.00 | J164: =Table5402945[[#This Row],[Yurtiçi İhraç Limiti Nominal Tutar (TL)]]/5.8087 -> 80,740,957.53 | K164: 386,200,000.00 | L164: =Table5402945[[#This Row],[Yurtiçi İhraç Limiti Nominal Tutar (TL)]]-Table5402945[[#This Row],[Yurtiçi Satışı Gerçekleşen Nominal Tutar (TL)]]-82800000 -> 0.00
A165: 163 | B165: Koton Mağazacılık Tekstil Sanayi ve Ticaret A.Ş. | C165: Reel Sektör | D165: Borçlanma Aracı | E165: 2018-06-29 | F165: - | G165: 2018-09-04 | H165: Tahsisli/Nitelikli Yatırımcı | I165: 420,000,000.00 | J165: =Table5402945[[#This Row],[Yurtiçi İhraç Limiti Nominal Tutar (TL)]]/6.6918 -> 62,763,382.05 | K165: 206,970,000.00 | L165: =Table5402945[[#This Row],[Yurtiçi İhraç Limiti Nominal Tutar (TL)]]-Table5402945[[#This Row],[Yurtiçi Satışı Gerçekleşen Nominal Tutar (TL)]] -> 213,030,000.00
A166: 164 | B166: Denizbank A.Ş. | C166: Banka | D166: Borçlanma Aracı | E166: 2018-07-16 | F166: - | G166: 2018-09-04 | H166: Halka Arz/Tahsisli/Nitelikli Yatırımcı | I166: 20,000,000,000.00 | J166: =Table5402945[[#This Row],[Yurtiçi İhraç Limiti Nominal Tutar (TL)]]/6.6918 -> 2,988,732,478.56 | K166: 2,279,000,000.00 | L166: =Table5402945[[#This Row],[Yurtiçi İhraç Limiti Nominal Tutar (TL)]]-Table5402945[[#This Row],[Yurtiçi Satışı Gerçekleşen Nominal Tutar (TL)]] -> 17,721,000,000.00
A167: 165 | B167: MLP Sağlık Hizmetleri A.Ş. | C167: Reel Sektör | D167: Borçlanma Aracı | E167: 2018-07-30 | F167: - | G167: 2018-09-04 | H167: Nitelikli Yatırımcı | I167: 500,000,000.00 | J167: =Table5402945[[#This Row],[Yurtiçi İhraç Limiti Nominal Tutar (TL)]]/6.6918 -> 74,718,311.96 | K167: 29,260,000.00 | L167: =Table5402945[[#This Row],[Yurtiçi İhraç Limiti Nominal Tutar (TL)]]-Table5402945[[#This Row],[Yurtiçi Satışı Gerçekleşen Nominal Tutar (TL)]] -> 470,740,000.00
A168: 166 | B168: Türkerler İnşaat Turizm Madencilik Enerji Üretim Ticaret ve Sanayi A.Ş. | C168: Reel Sektör | D168: Borçlanma Aracı | E168: 2018-08-03 | F168: - | G168: 2018-09-04 | H168: Nitelikli Yatırımcı | I168: 500,000,000.00 | J168: =Table5402945[[#This Row],[Yurtiçi İhraç Limiti Nominal Tutar (TL)]]/6.6918 -> 74,718,311.96 | K168: 0.00 | L168: =Table5402945[[#This Row],[Yurtiçi İhraç Limiti Nominal Tutar (TL)]]-Table5402945[[#This Row],[Yurtiçi Satışı Gerçekleşen Nominal Tutar (TL)]] -> 500,000,000.00
A169: 167 | B169: Halk Gayrimenkul Yatırım Ortaklığı A.Ş. | C169: Reel Sektör | D169: Borçlanma Aracı | E169: 2018-08-15 | F169: - | G169: 2018-09-04 | H169: Tahsisli/Nitelikli Yatırımcı | I169: 1,000,000,000.00 | J169: =Table5402945[[#This Row],[Yurtiçi İhraç Limiti Nominal Tutar (TL)]]/6.6918 -> 149,436,623.93 | K169: 50,000,000.00 | L169: =Table5402945[[#This Row],[Yurtiçi İhraç Limiti Nominal Tutar (TL)]]-Table5402945[[#This Row],[Yurtiçi Satışı Gerçekleşen Nominal Tutar (TL)]] -> 950,000,000.00
A170: 168 | B170: QNB Finansbank A.Ş. | C170: Banka | D170: Borçlanma Aracı | E170: 2018-08-16 | F170: - | G170: 2018-09-04 | H170: Halka Arz/Tahsisli/Nitelikli Yatırımcı | I170: 20,000,000,000.00 | J170: =Table5402945[[#This Row],[Yurtiçi İhraç Limiti Nominal Tutar (TL)]]/6.6918 -> 2,988,732,478.56 | K170: 2,781,769,600.00 | L170: =Table5402945[[#This Row],[Yurtiçi İhraç Limiti Nominal Tutar (TL)]]-Table5402945[[#This Row],[Yurtiçi Satışı Gerçekleşen Nominal Tutar (TL)]] -> 17,218,230,400.00
A171: 169 | B171: Şeker Finansal Kiralama A.Ş. | C171: Finansal Kurum | D171: Borçlanma Aracı | E171: 2018-08-29 | F171: - | G171: 2018-09-04 | H171: Halka Arz/Tahsisli/Nitelikli Yatırımcı | I171: 78,000,000.00 | J171: =Table5402945[[#This Row],[Yurtiçi İhraç Limiti Nominal Tutar (TL)]]/6.6918 -> 11,656,056.67 | K171: 78,000,000.00 | L171: =Table5402945[[#This Row],[Yurtiçi İhraç Limiti Nominal Tutar (TL)]]-Table5402945[[#This Row],[Yurtiçi Satışı Gerçekleşen Nominal Tutar (TL)]] -> 0.00
A172: 170 | B172: ZKB Varlık Kiralama A.Ş | C172: Finansal Kurum | D172: Kira Sertifikası | E172: 2018-07-02 | F172: - | G172: 2018-09-13 | H172: Tahsisli/Nitelikli Yatırımcı | I172: 500,000,000.00 | J172: =Table5402945[[#This Row],[Yurtiçi İhraç Limiti Nominal Tutar (TL)]]/6.3681 -> 78,516,354.96 | K172: 100,000,000.00 | L172: =Table5402945[[#This Row],[Yurtiçi İhraç Limiti Nominal Tutar (TL)]]-Table5402945[[#This Row],[Yurtiçi Satışı Gerçekleşen Nominal Tutar (TL)]] -> 400,000,000.00
A173: 171 | B173: TF Varlık Kiralama A.Ş. | C173: Finansal Kurum | D173: Kira Sertifikası | E173: 2018-08-10 | F173: - | G173: 2018-09-13 | H173: Halka Arz/Tahsisli/Nitelikli Yatırımcı | I173: 5,000,000,000.00 | J173: =Table5402945[[#This Row],[Yurtiçi İhraç Limiti Nominal Tutar (TL)]]/6.3681 -> 785,163,549.57 | K173: 2,490,000,000.00 | L173: =Table5402945[[#This Row],[Yurtiçi İhraç Limiti Nominal Tutar (TL)]]-Table5402945[[#This Row],[Yurtiçi Satışı Gerçekleşen Nominal Tutar (TL)]] -> 2,510,000,000.00
A174: 172 | B174: Zorlu Faktoring A.Ş. | C174: Finansal Kurum | D174: Borçlanma Aracı | E174: 2018-08-16 | F174: - | G174: 2018-09-13 | H174: Nitelikli Yatırımcı | I174: 83,850,000.00 | J174: =Table5402945[[#This Row],[Yurtiçi İhraç Limiti Nominal Tutar (TL)]]/6.3681 -> 13,167,192.73 | K174: 41,120,000.00 | L174: =Table5402945[[#This Row],[Yurtiçi İhraç Limiti Nominal Tutar (TL)]]-Table5402945[[#This Row],[Yurtiçi Satışı Gerçekleşen Nominal Tutar (TL)]] -> 42,730,000.00
A175: 173 | B175: Hektaş Ticaret T.A.Ş. | C175: Reel Sektör | D175: Borçlanma Aracı | E175: 2018-08-17 | F175: - | G175: 2018-09-13 | H175: Nitelikli Yatırımcı | I175: 400,000,000.00 | J175: =Table5402945[[#This Row],[Yurtiçi İhraç Limiti Nominal Tutar (TL)]]/6.3681 -> 62,813,083.97 | K175: 195,000,000.00 | L175: =Table5402945[[#This Row],[Yurtiçi İhraç Limiti Nominal Tutar (TL)]]-Table5402945[[#This Row],[Yurtiçi Satışı Gerçekleşen Nominal Tutar (TL)]] -> 205,000,000.00
A176: 174 | B176: Şeker Yatırım Menkul Değerler A.Ş. | C176: Finansal Kurum | D176: Borçlanma Aracı | E176: 2018-08-16 | F176: - | G176: 2018-09-20 | H176: Nitelikli Yatırımcı | I176: 100,000,000.00 | J176: =Table5402945[[#This Row],[Yurtiçi İhraç Limiti Nominal Tutar (TL)]]/6.2831 -> 15,915,710.40 | K176: 70,927,200.00 | L176: =Table5402945[[#This Row],[Yurtiçi İhraç Limiti Nominal Tutar (TL)]]-Table5402945[[#This Row],[Yurtiçi Satışı Gerçekleşen Nominal Tutar (TL)]] -> 29,072,800.00
A177: 175 | B177: İş Yatırım Menkul Değerler A.Ş. | C177: Finansal Kurum | D177: Borçlanma Aracı | E177: 2018-08-27 | F177: - | G177: 2018-09-20 | H177: Tahsisli/Nitelikli Yatırımcı | I177: 1,300,000,000.00 | J177: =Table5402945[[#This Row],[Yurtiçi İhraç Limiti Nominal Tutar (TL)]]/6.2831 -> 206,904,235.17 | K177: 1,296,993,000.00 | L177: =Table5402945[[#This Row],[Yurtiçi İhraç Limiti Nominal Tutar (TL)]]-Table5402945[[#This Row],[Yurtiçi Satışı Gerçekleşen Nominal Tutar (TL)]] -> 3,007,000.00
A178: 176 | B178: Sümer Faktoring A.Ş. | C178: Finansal Kurum | D178: Borçlanma Aracı | E178: 2018-08-31 | F178: - | G178: 2018-09-20 | H178: Nitelikli Yatırımcı | I178: 23,000,000.00 | J178: =Table5402945[[#This Row],[Yurtiçi İhraç Limiti Nominal Tutar (TL)]]/6.2831 -> 3,660,613.39 | K178: 0.00 | L178: =Table5402945[[#This Row],[Yurtiçi İhraç Limiti Nominal Tutar (TL)]]-Table5402945[[#This Row],[Yurtiçi Satışı Gerçekleşen Nominal Tutar (TL)]] -> 23,000,000.00
A179: 177 | B179: Optima Faktoring A.Ş. | C179: Finansal Kurum | D179: Borçlanma Aracı | E179: 2018-08-16 | F179: - | G179: 2018-09-27 | H179: Nitelikli Yatırımcı | I179: 89,000,000.00 | J179: =Table5402945[[#This Row],[Yurtiçi İhraç Limiti Nominal Tutar (TL)]]/6.0862 -> 14,623,246.03 | K179: 0.00 | L179: =Table5402945[[#This Row],[Yurtiçi İhraç Limiti Nominal Tutar (TL)]]-Table5402945[[#This Row],[Yurtiçi Satışı Gerçekleşen Nominal Tutar (TL)]] -> 89,000,000.00
A180: 178 | B180: Türkiye İş Bankası A.Ş. | C180: Banka | D180: Borçlanma Aracı | E180: 2018-08-17 | F180: - | G180: 2018-09-27 | H180: Nitelikli Yatırımcı | I180: 5,000,000,000.00 | J180: =Table5402945[[#This Row],[Yurtiçi İhraç Limiti Nominal Tutar (TL)]]/6.0862 -> 821,530,675.96 | K180: 0.00 | L180: =Table5402945[[#This Row],[Yurtiçi İhraç Limiti Nominal Tutar (TL)]]-Table5402945[[#This Row],[Yurtiçi Satışı Gerçekleşen Nominal Tutar (TL)]] -> 5,000,000,000.00
A181: 179 | B181: Türkiye Halk Bankası A.Ş. | C181: Banka | D181: Borçlanma Aracı | E181: 2018-08-28 | F181: - | G181: 2018-09-27 | H181: Halka Arz/Tahsisli/Nitelikli Yatırımcı | I181: 15,000,000,000.00 | J181: =Table5402945[[#This Row],[Yurtiçi İhraç Limiti Nominal Tutar (TL)]]/6.0862 -> 2,464,592,027.87 | K181: 2,736,000,000.00 | L181: =Table5402945[[#This Row],[Yurtiçi İhraç Limiti Nominal Tutar (TL)]]-Table5402945[[#This Row],[Yurtiçi Satışı Gerçekleşen Nominal Tutar (TL)]] -> 12,264,000,000.00
A182: 180 | B182: Birikim Varlık Yönetim A.Ş. | C182: Finansal Kurum | D182: Borçlanma Aracı | E182: 2018-09-05 | F182: - | G182: 2018-09-27 | H182: Tahsisli/Nitelikli Yatırımcı | I182: 95,000,000.00 | J182: =Table5402945[[#This Row],[Yurtiçi İhraç Limiti Nominal Tutar (TL)]]/6.0862 -> 15,609,082.84 | K182: 0.00 | L182: =Table5402945[[#This Row],[Yurtiçi İhraç Limiti Nominal Tutar (TL)]]-Table5402945[[#This Row],[Yurtiçi Satışı Gerçekleşen Nominal Tutar (TL)]] -> 95,000,000.00
A183: 181 | B183: Net Holding A.Ş. | C183: Reel Sektör | D183: Borçlanma Aracı | E183: 2018-09-07 | F183: - | G183: 2018-09-27 | H183: Tahsisli/Nitelikli Yatırımcı | I183: 300,000,000.00 | J183: =Table5402945[[#This Row],[Yurtiçi İhraç Limiti Nominal Tutar (TL)]]/6.0862 -> 49,291,840.56 | K183: 0.00 | L183: =Table5402945[[#This Row],[Yurtiçi İhraç Limiti Nominal Tutar (TL)]]-Table5402945[[#This Row],[Yurtiçi Satışı Gerçekleşen Nominal Tutar (TL)]] -> 300,000,000.00
A184: 182 | B184: Net Holding A.Ş. | C184: Reel Sektör | D184: Borçlanma Aracı | E184: 2018-09-07 | F184: - | G184: 2018-09-27 | H184: Yurtdışı | M184: 300,000,000.00 | N184: ABD Doları | O184: 0.00 | P184: =Table5402945[[#This Row],[Yurtdışı İhraç Limiti Nominal Tutar]]-Table5402945[[#This Row],[Yurtdışı Satışı Gerçekleşen Nominal Tutar]] -> 300,000,000.00 | Q184: =Table5402945[[#This Row],[Yurtdışı Satışı Gerçekleşen Nominal Tutar]]*5.2905 -> 0.00
A185: 183 | B185: Ak Finansal Kiralama A.Ş. | C185: Finansal Kurum | D185: Borçlanma Aracı | E185: 2018-09-11 | F185: - | G185: 2018-09-27 | H185: Tahsisli/Nitelikli Yatırımcı | I185: 1,000,000,000.00 | J185: =Table5402945[[#This Row],[Yurtiçi İhraç Limiti Nominal Tutar (TL)]]/6.0862 -> 164,306,135.19 | K185: 943,788,000.00 | L185: =Table5402945[[#This Row],[Yurtiçi İhraç Limiti Nominal Tutar (TL)]]-Table5402945[[#This Row],[Yurtiçi Satışı Gerçekleşen Nominal Tutar (TL)]] -> 56,212,000.00
A186: 184 | B186: Halk Faktoring A.Ş. | C186: Finansal Kurum | D186: Borçlanma Aracı | E186: 2018-09-14 | F186: - | G186: 2018-09-27 | H186: Nitelikli Yatırımcı | I186: 315,000,000.00 | J186: =Table5402945[[#This Row],[Yurtiçi İhraç Limiti Nominal Tutar (TL)]]/6.0862 -> 51,756,432.59 | K186: 210,000,000.00 | L186: =Table5402945[[#This Row],[Yurtiçi İhraç Limiti Nominal Tutar (TL)]]-Table5402945[[#This Row],[Yurtiçi Satışı Gerçekleşen Nominal Tutar (TL)]] -> 105,000,000.00
A187: 185 | B187: Türkiye Vakıflar Bankası T.A.O. | C187: Banka | D187: Borçlanma Aracı | E187: 2018-09-21 | F187: - | G187: 2018-09-27 | H187: Nitelikli Yatırımcı | I187: 5,000,000,000.00 | J187: =Table5402945[[#This Row],[Yurtiçi İhraç Limiti Nominal Tutar (TL)]]/6.0862 -> 821,530,675.96 | K187: 4,993,574,836.00 | L187: =Table5402945[[#This Row],[Yurtiçi İhraç Limiti Nominal Tutar (TL)]]-Table5402945[[#This Row],[Yurtiçi Satışı Gerçekleşen Nominal Tutar (TL)]] -> 6,425,164.00
A188: 186 | B188: Türkiye İhracat Kredi Bankası A.Ş. | C188: Banka | D188: Borçlanma Aracı | E188: 2018-09-25 | F188: - | G188: 2018-09-27 | H188: Nitelikli Yatırımcı | I188: 3,000,000,000.00 | J188: =Table5402945[[#This Row],[Yurtiçi İhraç Limiti Nominal Tutar (TL)]]/6.0862 -> 492,918,405.57 | K188: 2,901,759,000.00 | L188: =Table5402945[[#This Row],[Yurtiçi İhraç Limiti Nominal Tutar (TL)]]-Table5402945[[#This Row],[Yurtiçi Satışı Gerçekleşen Nominal Tutar (TL)]] -> 98,241,000.00
A189: 187 | B189: Suzuki Motorlu Araçlar Pazarlama A.Ş. | C189: Reel Sektör | D189: Borçlanma Aracı | E189: 2018-08-10 | G189: 2018-10-04 | H189: Tahsisli/Nitelikli Yatırımcı | I189: 150,000,000.00 | J189: =Table5402945[[#This Row],[Yurtiçi İhraç Limiti Nominal Tutar (TL)]]/6.1354 -> 24,448,283.73 | K189: 40,000,000.00 | L189: =Table5402945[[#This Row],[Yurtiçi İhraç Limiti Nominal Tutar (TL)]]-Table5402945[[#This Row],[Yurtiçi Satışı Gerçekleşen Nominal Tutar (TL)]] -> 110,000,000.00
A190: 188 | B190: Yapı Kredi Yatırım Menkul Değerler A.Ş. | C190: Finansal Kurum | D190: Borçlanma Aracı | E190: 2018-08-14 | G190: 2018-10-04 | H190: Tahsisli/Nitelikli Yatırımcı | I190: 757,800,000.00 | J190: =Table5402945[[#This Row],[Yurtiçi İhraç Limiti Nominal Tutar (TL)]]/6.1354 -> 123,512,729.41 | K190: 757,800,000.00 | L190: =Table5402945[[#This Row],[Yurtiçi İhraç Limiti Nominal Tutar (TL)]]-Table5402945[[#This Row],[Yurtiçi Satışı Gerçekleşen Nominal Tutar (TL)]] -> 0.00
A191: 189 | B191: Aktif Yatırım Bankası A.Ş. | C191: Banka | D191: Borçlanma Aracı | E191: 2018-08-16 | G191: 2018-10-04 | H191: Halka Arz/Tahsisli/Nitelikli Yatırımcı | I191: 1,300,000,000.00 | J191: =Table5402945[[#This Row],[Yurtiçi İhraç Limiti Nominal Tutar (TL)]]/6.1354 -> 211,885,125.66 | K191: 1,250,000,000.00 | L191: =Table5402945[[#This Row],[Yurtiçi İhraç Limiti Nominal Tutar (TL)]]-Table5402945[[#This Row],[Yurtiçi Satışı Gerçekleşen Nominal Tutar (TL)]] -> 50,000,000.00
A192: 190 | B192: Ünlü Menkul Değerler A.Ş. | C192: Finansal Kurum | D192: Borçlanma Aracı | E192: 2018-08-31 | G192: 2018-10-04 | H192: Nitelikli Yatırımcı | I192: 150,000,000.00 | J192: =Table5402945[[#This Row],[Yurtiçi İhraç Limiti Nominal Tutar (TL)]]/6.1354 -> 24,448,283.73 | K192: 0.00 | L192: =Table5402945[[#This Row],[Yurtiçi İhraç Limiti Nominal Tutar (TL)]]-Table5402945[[#This Row],[Yurtiçi Satışı Gerçekleşen Nominal Tutar (TL)]] -> 150,000,000.00
A193: 191 | B193: Aktif Bank Sukuk Varlık Kiralama A.Ş. | C193: Finansal Kurum | D193: Kira Sertifikası | E193: 2018-09-05 | G193: 2018-10-04 | H193: Nitelikli Yatırımcı | I193: 400,000,000.00 | J193: =Table5402945[[#This Row],[Yurtiçi İhraç Limiti Nominal Tutar (TL)]]/6.1354 -> 65,195,423.28 | K193: 250,000,000.00 | L193: =Table5402945[[#This Row],[Yurtiçi İhraç Limiti Nominal Tutar (TL)]]-Table5402945[[#This Row],[Yurtiçi Satışı Gerçekleşen Nominal Tutar (TL)]] -> 150,000,000.00
A194: 192 | B194: Çelik Motor Ticaret A.Ş. | C194: Reel Sektör | D194: Borçlanma Aracı | E194: 2018-09-05 | G194: 2018-10-04 | H194: Nitelikli Yatırımcı | I194: 200,000,000.00 | J194: =Table5402945[[#This Row],[Yurtiçi İhraç Limiti Nominal Tutar (TL)]]/6.1354 -> 32,597,711.64 | K194: 0.00 | L194: =Table5402945[[#This Row],[Yurtiçi İhraç Limiti Nominal Tutar (TL)]]-Table5402945[[#This Row],[Yurtiçi Satışı Gerçekleşen Nominal Tutar (TL)]] -> 200,000,000.00
A195: 193 | B195: Şeker Finansal Kiralama A.Ş. | C195: Finansal Kurum | D195: Borçlanma Aracı | E195: 2018-09-20 | G195: 2018-10-04 | H195: Halka Arz/Tahsisli/Nitelikli Yatırımcı | I195: 118,000,000.00 | J195: =Table5402945[[#This Row],[Yurtiçi İhraç Limiti Nominal Tutar (TL)]]/6.1354 -> 19,232,649.87 | K195: 62,237,000.00 | L195: =Table5402945[[#This Row],[Yurtiçi İhraç Limiti Nominal Tutar (TL)]]-Table5402945[[#This Row],[Yurtiçi Satışı Gerçekleşen Nominal Tutar (TL)]] -> 55,763,000.00
A196: 194 | B196: QNB Finans Finansal Kiralama A.Ş. | C196: Finansal Kurum | D196: Borçlanma Aracı | E196: 2018-09-13 | G196: 2018-10-11 | H196: Tahsisli/Nitelikli Yatırımcı | I196: 2,000,000,000.00 | J196: =Table5402945[[#This Row],[Yurtiçi İhraç Limiti Nominal Tutar (TL)]]/5.9941 -> 333,661,433.74 | K196: 733,385,000.00 | L196: =Table5402945[[#This Row],[Yurtiçi İhraç Limiti Nominal Tutar (TL)]]-Table5402945[[#This Row],[Yurtiçi Satışı Gerçekleşen Nominal Tutar (TL)]] -> 1,266,615,000.00
A197: 195 | B197: Ak Yatırım Menkul Değerler A.Ş. | C197: Finansal Kurum | D197: Borçlanma Aracı | E197: 2018-09-14 | G197: 2018-10-11 | H197: Nitelikli Yatırımcı | I197: 750,000,000.00 | J197: =Table5402945[[#This Row],[Yurtiçi İhraç Limiti Nominal Tutar (TL)]]/5.9941 -> 125,123,037.65 | K197: 400,000,000.00 | L197: =Table5402945[[#This Row],[Yurtiçi İhraç Limiti Nominal Tutar (TL)]]-Table5402945[[#This Row],[Yurtiçi Satışı Gerçekleşen Nominal Tutar (TL)]] -> 350,000,000.00
A198: 196 | B198: Oyak Yatırım Menkul Değerler A.Ş. | C198: Finansal Kurum | D198: Borçlanma Aracı | E198: 2018-09-18 | G198: 2018-10-11 | H198: Nitelikli Yatırımcı | I198: 128,000,000.00 | J198: =Table5402945[[#This Row],[Yurtiçi İhraç Limiti Nominal Tutar (TL)]]/5.9941 -> 21,354,331.76 | K198: 113,500,000.00 | L198: =Table5402945[[#This Row],[Yurtiçi İhraç Limiti Nominal Tutar (TL)]]-Table5402945[[#This Row],[Yurtiçi Satışı Gerçekleşen Nominal Tutar (TL)]] -> 14,500,000.00
A199: 197 | B199: QNB Finans Faktoring A.Ş. | C199: Finansal Kurum | D199: Borçlanma Aracı | E199: 2018-09-24 | G199: 2018-10-11 | H199: Tahsisli/Nitelikli Yatırımcı | I199: 292,559,000.00 | J199: =Table5402945[[#This Row],[Yurtiçi İhraç Limiti Nominal Tutar (TL)]]/5.9941 -> 48,807,827.70 | K199: 292,559,000.00 | L199: =Table5402945[[#This Row],[Yurtiçi İhraç Limiti Nominal Tutar (TL)]]-Table5402945[[#This Row],[Yurtiçi Satışı Gerçekleşen Nominal Tutar (TL)]] -> 0.00
A200: 198 | B200: Fibabanka A.Ş. | C200: Banka | D200: Borçlanma Aracı | E200: 2018-09-24 | G200: 2018-10-11 | H200: Tahsisli/Nitelikli Yatırımcı | I200: 775,000,000.00 | J200: =Table5402945[[#This Row],[Yurtiçi İhraç Limiti Nominal Tutar (TL)]]/5.9941 -> 129,293,805.58 | K200: 200,000,000.00 | L200: =Table5402945[[#This Row],[Yurtiçi İhraç Limiti Nominal Tutar (TL)]]-Table5402945[[#This Row],[Yurtiçi Satışı Gerçekleşen Nominal Tutar (TL)]] -> 575,000,000.00
... 130 more rows
